{"text_format":"1","workbook":"xlsx","n_sheets":36,"sheets":["TABLEAU GENERAL","modele","AMSELLEM ANNIE","ANDRE ALAIN","BAL NADEGE","modele (12)","BIDEAU BERNARD","BOULARD FABRICE","BOURGES PATRICIA","BUCHOUX FLORIAN","CHAUVEL MICHEL","CORBEL JOSIANE","COUGARD HUBERT","EL BACHIR MARIE JOSE","ELLIEN MARIANNE","EVEILLARD DANIEL","GLEMEE AZELIN","GODE PIERRE YVES","GUEGUEN ALANIG","GUEGUEN STEVEN","GUEZO CLAUDE","GUILLARD NICOLE","GUILON LAURENT","HAMON KARINE","HARNOIS ARLETTE","HARZELLEC ROBERT","JOSSELIN CATHERINE","KADI SAID","régime alimentaire","accompagnateur","boisson","médecin","Réponse","véhicules","modele (13)","Feuil1"],"not_rendered":{"charts":0,"images":0,"macros":1,"external_links":0,"defined_names":640,"comments":0,"pivot_tables":0},"unopened":[],"bounds":{"document_bytes":16777216,"sheet_cells":100000,"rows_first":2000,"rows_last":500,"rows_between":2000,"halvings":0,"cell_chars":16384,"cell_head_chars":4096},"cells_cut":0,"cells_raw":0,"read":"whole","date_system":"1904"}

{"sheet":"TABLEAU GENERAL","index":0,"n_rows":62,"n_cols":31,"rows_kept":62,"cut":false,"hidden":false,"merged":[]}
[null,null,"Anesthésie","Bilan de déglutition","Bilan sanguin","Chirurgie (ortho ou autres)","cardiologie","dentiste","dépistage colorectal","dermatologie","ECG","Endocrinologie","gastrologie","gynécologie","mammographie","MPR","Neurologie","Ophtalmologie","ORL","Orthophoniste","pédicure","pneumologie","psychiatre","radiologie, scan etc","urologie"]
["Total par spécialité"]
[]
["NOM ET PRENOM","Unité","Anesthésie","Bilan de déglutition","Bilan sanguin","Chirurgie (ortho ou autres)","cardiologie","dentiste","dépistage colorectal","dermatologie","ECG","Endocrinologie","gastrologie","gynécologie","mammographie","MPR","Neurologie","Ophtalmologie","ORL","Orthoprothésiste","pédicure","pneumologie","psychiatre","radiologie, scan etc","urologie","vaccin covid","vaccin grippe","vaccin autres","Cette semaine","Semaine prochaine","Mois prochain"]
["AMSELLEM Annie","Rosier",{"$f":"'AMSELLEM ANNIE'!B$12","v":"1904-01-01"},{"$f":"'AMSELLEM ANNIE'!C$12","v":"1904-01-01"},{"$f":"'AMSELLEM ANNIE'!D$12","v":"1904-01-01"},{"$f":"'AMSELLEM ANNIE'!E$12","v":"1904-01-01"},{"$f":"'AMSELLEM ANNIE'!F$12","v":"1904-01-01"},{"$f":"'AMSELLEM ANNIE'!G$12","v":"1904-01-01"},{"$f":"'AMSELLEM ANNIE'!H$12","v":"1904-01-01"},{"$f":"'AMSELLEM ANNIE'!I$12","v":"1904-01-01"},{"$f":"'AMSELLEM ANNIE'!J$12","v":"1904-01-01"},{"$f":"'AMSELLEM ANNIE'!K$12","v":"1904-01-01"},{"$f":"'AMSELLEM ANNIE'!L$12","v":"1904-01-01"},{"$f":"'AMSELLEM ANNIE'!M$12","v":"1904-01-01"},{"$f":"'AMSELLEM ANNIE'!N$12","v":"1904-01-01"},{"$f":"'AMSELLEM ANNIE'!O$12","v":"1904-01-01"},{"$f":"'AMSELLEM ANNIE'!P$12","v":"1904-01-01"},{"$f":"'AMSELLEM ANNIE'!Q$12","v":"1904-01-01"},{"$f":"'AMSELLEM ANNIE'!R$12","v":"1904-01-01"},{"$f":"'AMSELLEM ANNIE'!S$12","v":"1904-01-01"},{"$f":"'AMSELLEM ANNIE'!T$12","v":"2021-04-14T11:00:00"},{"$f":"'AMSELLEM ANNIE'!U$12","v":"1904-01-01"},{"$f":"'AMSELLEM ANNIE'!V$12","v":"1904-01-01"},{"$f":"'AMSELLEM ANNIE'!W$12","v":"1904-01-01"},{"$f":"'AMSELLEM ANNIE'!X$12","v":"1904-01-01"},{"$f":"'AMSELLEM ANNIE'!Y$12","v":"1904-01-01"},{"$f":"'AMSELLEM ANNIE'!Z$12","v":"1904-01-01"},{"$f":"'AMSELLEM ANNIE'!AA$12","v":"1904-01-01"},{"$f":"sem_actu(C5:AB5)","v":1},{"$f":"sem_proch(D5:AB5)","v":0},{"$f":"mois_proch(C5:AB5)","v":0}]
["ANDRE ALain","Soleil",{"$f":"'ANDRE ALAIN'!B$12","v":"1904-01-01"},{"$f":"'ANDRE ALAIN'!C$12","v":"1904-01-01"},{"$f":"'ANDRE ALAIN'!D$12","v":"1904-01-01"},{"$f":"'ANDRE ALAIN'!E$12","v":"1904-01-01"},{"$f":"'ANDRE ALAIN'!F$12","v":"1904-01-01"},{"$f":"'ANDRE ALAIN'!G$12","v":"2021-03-15"},{"$f":"'ANDRE ALAIN'!H$12","v":"1904-01-01"},{"$f":"'ANDRE ALAIN'!I$12","v":"1904-01-01"},{"$f":"'ANDRE ALAIN'!J$12","v":"A prévoir"},{"$f":"'ANDRE ALAIN'!K$12","v":"1904-01-01"},{"$f":"'ANDRE ALAIN'!L$12","v":"1904-01-01"},{"$f":"'ANDRE ALAIN'!M$12","v":"1904-01-01"},{"$f":"'ANDRE ALAIN'!N$12","v":"1904-01-01"},{"$f":"'ANDRE ALAIN'!O$12","v":"1904-01-01"},{"$f":"'ANDRE ALAIN'!P$12","v":"1904-01-01"},{"$f":"'ANDRE ALAIN'!Q$12","v":"1904-01-01"},{"$f":"'ANDRE ALAIN'!R$12","v":"1904-01-01"},{"$f":"'ANDRE ALAIN'!S$12","v":"1904-01-01"},null,null,null,{"$f":"'ANDRE ALAIN'!W$12","v":"1904-01-01"},{"$f":"'ANDRE ALAIN'!X$12","v":"1904-01-01"},{"$f":"'ANDRE ALAIN'!Y$12","v":"1904-01-01"},{"$f":"'ANDRE ALAIN'!Z$12","v":"1904-01-01"},{"$f":"'ANDRE ALAIN'!AA$12","v":"1904-01-01"},{"$f":"sem_actu(C6:AB6)","v":0},{"$f":"sem_proch(D6:AB6)","v":0},{"$f":"mois_proch(C6:AB6)","v":0}]
["BAL Nadège","Soleil",{"$f":"'BAL NADEGE'!B$12","v":"1904-01-01"},{"$f":"'BAL NADEGE'!C$12","v":"1904-01-01"},{"$f":"'BAL NADEGE'!D$12","v":"1904-01-01"},{"$f":"'BAL NADEGE'!E$12","v":"1904-01-01"},{"$f":"'BAL NADEGE'!F$12","v":"1904-01-01"},{"$f":"'BAL NADEGE'!G$12","v":"a prévoir contrôle en 08/2021"},{"$f":"'BAL NADEGE'!H$12","v":"1904-01-01"},{"$f":"'BAL NADEGE'!I$12","v":"1904-01-01"},{"$f":"'BAL NADEGE'!J$12","v":"a prévoir"},{"$f":"'BAL NADEGE'!K$12","v":"1904-01-01"},{"$f":"'BAL NADEGE'!L$12","v":"1904-01-01"},{"$f":"'BAL NADEGE'!M$12","v":"1904-01-01"},{"$f":"'BAL NADEGE'!N$12","v":"a prévoir"},{"$f":"'BAL NADEGE'!O$12","v":"1904-01-01"},{"$f":"'BAL NADEGE'!P$12","v":"a prévoir 01/2022"},{"$f":"'BAL NADEGE'!Q$12","v":"1904-01-01"},{"$f":"'BAL NADEGE'!R$12","v":"1904-01-01"},{"$f":"'BAL NADEGE'!S$12","v":"1904-01-01"},{"$f":"'BAL NADEGE'!T$12","v":"1904-01-01"},{"$f":"'BAL NADEGE'!U$12","v":"1904-01-01"},{"$f":"'BAL NADEGE'!V$12","v":"1904-01-01"},{"$f":"'BAL NADEGE'!W$12","v":"1904-01-01"},{"$f":"'BAL NADEGE'!X$12","v":"1904-01-01"},{"$f":"'BAL NADEGE'!Y$12","v":"1904-01-01"},{"$f":"'BAL NADEGE'!Z$12","v":"1904-01-01"},{"$f":"'BAL NADEGE'!AA$12","v":"1904-01-01"},{"$f":"sem_actu(C7:AB7)","v":0},{"$f":"sem_proch(D7:AB7)","v":0},{"$f":"mois_proch(C7:AB7)","v":0}]
["BIDEAU Bernard","Prairie",null,null,null,null,null,null,null,null,null,null,null,null,null,null,null,null,null,null,null,null,null,null,null,null,null,null,{"$f":"sem_actu(C8:AB8)","v":0},{"$f":"sem_proch(D8:AB8)","v":0},{"$f":"mois_proch(C8:AB8)","v":0}]
["BOULARD Fabrice","Océan",{"$f":"'BOULARD FABRICE'!B$12","v":"1904-01-01"},{"$f":"'BOULARD FABRICE'!C$12","v":"1904-01-01"},{"$f":"'BOULARD FABRICE'!D$12","v":"1904-01-01"},{"$f":"'BOULARD FABRICE'!E$12","v":"1904-01-01"},{"$f":"'BOULARD FABRICE'!F$12","v":"1904-01-01"},{"$f":"'BOULARD FABRICE'!G$12","v":"a prévoir dans 6 mois  juillet/août 2021)"},{"$f":"'BOULARD FABRICE'!H$12","v":"1904-01-01"},{"$f":"'BOULARD FABRICE'!I$12","v":"1904-01-01"},{"$f":"'BOULARD FABRICE'!J$12","v":"1904-01-01"},{"$f":"'BOULARD FABRICE'!K$12","v":"1904-01-01"},{"$f":"'BOULARD FABRICE'!L$12","v":"1904-01-01"},{"$f":"'BOULARD FABRICE'!M$12","v":"1904-01-01"},{"$f":"'BOULARD FABRICE'!N$12","v":"1904-01-01"},{"$f":"'BOULARD FABRICE'!O$12","v":"1904-01-01"},{"$f":"'BOULARD FABRICE'!P$12","v":"1904-01-01"},{"$f":"'BOULARD FABRICE'!Q$12","v":"1904-01-01"},{"$f":"'BOULARD FABRICE'!R$12","v":"1904-01-01"},{"$f":"'BOULARD FABRICE'!S$12","v":"1904-01-01"},{"$f":"'BOULARD FABRICE'!T$12","v":"1904-01-01"},{"$f":"'BOULARD FABRICE'!U$12","v":"1904-01-01"},{"$f":"'BOULARD FABRICE'!V$12","v":"1904-01-01"},{"$f":"'BOULARD FABRICE'!W$12","v":"1904-01-01"},{"$f":"'BOULARD FABRICE'!X$12","v":"1904-01-01"},{"$f":"'BOULARD FABRICE'!Y$12","v":"1904-01-01"},{"$f":"'BOULARD FABRICE'!Z$12","v":"1904-01-01"},{"$f":"'BOULARD FABRICE'!AA$12","v":"a prévoir en 2032"},{"$f":"sem_actu(C9:AB9)","v":0},{"$f":"sem_proch(D9:AB9)","v":0},{"$f":"mois_proch(C9:AB9)","v":0}]
["BOURGES Patricia","Soleil",{"$f":"'BOURGES PATRICIA'!B$12","v":"1904-01-01"},{"$f":"'BOURGES PATRICIA'!C$12","v":"1904-01-01"},{"$f":"'BOURGES PATRICIA'!D$12","v":"1904-01-01"},{"$f":"'BOURGES PATRICIA'!E$12","v":"1904-01-01"},{"$f":"'BOURGES PATRICIA'!F$12","v":"1904-01-01"},{"$f":"'BOURGES PATRICIA'!G$12","v":"a prévoir en 11/2021"},{"$f":"'BOURGES PATRICIA'!H$12","v":"1904-01-01"},{"$f":"'BOURGES PATRICIA'!I$12","v":"1904-01-01"},{"$f":"'BOURGES PATRICIA'!J$12","v":"1904-01-01"},{"$f":"'BOURGES PATRICIA'!K$12","v":"1904-01-01"},{"$f":"'BOURGES PATRICIA'!L$12","v":"1904-01-01"},{"$f":"'BOURGES PATRICIA'!M$12","v":"2021-04-27T11:30:00"},{"$f":"'BOURGES PATRICIA'!N$12","v":"a prévoir en juin 2022"},{"$f":"'BOURGES PATRICIA'!O$12","v":"1904-01-01"},{"$f":"'BOURGES PATRICIA'!P$12","v":"1904-01-01"},{"$f":"'BOURGES PATRICIA'!Q$12","v":"a prévoir en 2024"},{"$f":"'BOURGES PATRICIA'!R$12","v":"1904-01-01"},{"$f":"'BOURGES PATRICIA'!S$12","v":"1904-01-01"},{"$f":"'BOURGES PATRICIA'!T$12","v":"1904-01-01"},{"$f":"'BOURGES PATRICIA'!U$12","v":"1904-01-01"},{"$f":"'BOURGES PATRICIA'!V$12","v":"1904-01-01"},{"$f":"'BOURGES PATRICIA'!W$12","v":"1904-01-01"},{"$f":"'BOURGES PATRICIA'!X$12","v":"1904-01-01"},{"$f":"'BOURGES PATRICIA'!Y$12","v":"1904-01-01"},{"$f":"'BOURGES PATRICIA'!Z$12","v":"1904-01-01"},{"$f":"'BOURGES PATRICIA'!AA$12","v":"1904-01-01"},{"$f":"sem_actu(C10:AB10)","v":0},{"$f":"sem_proch(D10:AB10)","v":0},{"$f":"mois_proch(C10:AB10)","v":0}]
["BUCHOUX Florian"," Prairie",{"$f":"'BUCHOUX FLORIAN'!B$12","v":"1904-01-01"},{"$f":"'BUCHOUX FLORIAN'!C$12","v":"1904-01-01"},{"$f":"'BUCHOUX FLORIAN'!D$12","v":"1904-01-01"},{"$f":"'BUCHOUX FLORIAN'!E$12","v":"1904-01-01"},{"$f":"'BUCHOUX FLORIAN'!F$12","v":"1904-01-01"},{"$f":"'BUCHOUX FLORIAN'!G$12","v":"1904-01-01"},{"$f":"'BUCHOUX FLORIAN'!H$12","v":"1904-01-01"},{"$f":"'BUCHOUX FLORIAN'!I$12","v":"1904-01-01"},{"$f":"'BUCHOUX FLORIAN'!J$12","v":"1904-01-01"},{"$f":"'BUCHOUX FLORIAN'!K$12","v":"1904-01-01"},{"$f":"'BUCHOUX FLORIAN'!L$12","v":"1904-01-01"},{"$f":"'BUCHOUX FLORIAN'!M$12","v":"1904-01-01"},{"$f":"'BUCHOUX FLORIAN'!N$12","v":"1904-01-01"},{"$f":"'BUCHOUX FLORIAN'!O$12","v":"1904-01-01"},{"$f":"'BUCHOUX FLORIAN'!P$12","v":"a prévoir en 05 2021"},{"$f":"'BUCHOUX FLORIAN'!Q$12","v":"1904-01-01"},{"$f":"'BUCHOUX FLORIAN'!R$12","v":"1904-01-01"},{"$f":"'BUCHOUX FLORIAN'!S$12","v":"1904-01-01"},{"$f":"'BUCHOUX FLORIAN'!T$12","v":"1904-01-01"},{"$f":"'BUCHOUX FLORIAN'!U$12","v":"1904-01-01"},{"$f":"'BUCHOUX FLORIAN'!V$12","v":"1904-01-01"},{"$f":"'BUCHOUX FLORIAN'!W$12","v":"1904-01-01"},{"$f":"'BUCHOUX FLORIAN'!X$12","v":"1904-01-01"},{"$f":"'BUCHOUX FLORIAN'!Y$12","v":"1904-01-01"},{"$f":"'BUCHOUX FLORIAN'!Z$12","v":"1904-01-01"},{"$f":"'BUCHOUX FLORIAN'!AA$12","v":"1904-01-01"},{"$f":"sem_actu(C11:AB11)","v":0},{"$f":"sem_proch(D11:AB11)","v":0},{"$f":"mois_proch(C11:AB11)","v":0}]
["CHAUVEL Michel","Rosier",{"$f":"'CHAUVEL MICHEL'!B$12","v":"1904-01-01"},{"$f":"'CHAUVEL MICHEL'!C$12","v":"1904-01-01"},{"$f":"'CHAUVEL MICHEL'!D$12","v":"1904-01-01"},{"$f":"'CHAUVEL MICHEL'!E$12","v":"1904-01-01"},{"$f":"'CHAUVEL MICHEL'!F$12","v":"1904-01-01"},{"$f":"'CHAUVEL MICHEL'!G$12","v":"1904-01-01"},{"$f":"'CHAUVEL MICHEL'!H$12","v":"1904-01-01"},{"$f":"'CHAUVEL MICHEL'!I$12","v":"1904-01-01"},{"$f":"'CHAUVEL MICHEL'!J$12","v":"1904-01-01"},{"$f":"'CHAUVEL MICHEL'!K$12","v":"1904-01-01"},{"$f":"'CHAUVEL MICHEL'!L$12","v":"2020-01-07"},{"$f":"'CHAUVEL MICHEL'!M$12","v":"1904-01-01"},{"$f":"'CHAUVEL MICHEL'!N$12","v":"1904-01-01"},{"$f":"'CHAUVEL MICHEL'!O$12","v":"1904-01-01"},{"$f":"'CHAUVEL MICHEL'!P$12","v":"1904-01-01"},{"$f":"'CHAUVEL MICHEL'!Q$12","v":"1904-01-01"},{"$f":"'CHAUVEL MICHEL'!R$12","v":"1904-01-01"},{"$f":"'CHAUVEL MICHEL'!S$12","v":"1904-01-01"},{"$f":"'CHAUVEL MICHEL'!T$12","v":"1904-01-01"},{"$f":"'CHAUVEL MICHEL'!U$12","v":"1904-01-01"},{"$f":"'CHAUVEL MICHEL'!V$12","v":"1904-01-01"},{"$f":"'CHAUVEL MICHEL'!W$12","v":"1904-01-01"},{"$f":"'CHAUVEL MICHEL'!X$12","v":"1904-01-01"},{"$f":"'CHAUVEL MICHEL'!Y$12","v":"1904-01-01"},{"$f":"'CHAUVEL MICHEL'!Z$12","v":"1904-01-01"},{"$f":"'CHAUVEL MICHEL'!AA$12","v":"1904-01-01"},{"$f":"sem_actu(C12:AB12)","v":0},{"$f":"sem_proch(D12:AB12)","v":0},{"$f":"mois_proch(C12:AB12)","v":0}]
["CORBEL Josiane","Rosier",{"$f":"'CORBEL JOSIANE'!B$12","v":"1904-01-01"},{"$f":"'CORBEL JOSIANE'!C$12","v":"1904-01-01"},{"$f":"'CORBEL JOSIANE'!D$12","v":"1904-01-01"},{"$f":"'CORBEL JOSIANE'!E$12","v":"1904-01-01"},{"$f":"'CORBEL JOSIANE'!F$12","v":"1904-01-01"},{"$f":"'CORBEL JOSIANE'!G$12","v":"1904-01-01"},{"$f":"'CORBEL JOSIANE'!H$12","v":"1904-01-01"},{"$f":"'CORBEL JOSIANE'!I$12","v":"1904-01-01"},{"$f":"'CORBEL JOSIANE'!J$12","v":"1904-01-01"},{"$f":"'CORBEL JOSIANE'!K$12","v":"1904-01-01"},{"$f":"'CORBEL JOSIANE'!L$12","v":"1904-01-01"},{"$f":"'CORBEL JOSIANE'!M$12","v":"1904-01-01"},{"$f":"'CORBEL JOSIANE'!N$12","v":"1904-01-01"},{"$f":"'CORBEL JOSIANE'!O$12","v":"1904-01-01"},{"$f":"'CORBEL JOSIANE'!P$12","v":"1904-01-01"},{"$f":"'CORBEL JOSIANE'!Q$12","v":"1904-01-01"},{"$f":"'CORBEL JOSIANE'!R$12","v":"1904-01-01"},{"$f":"'CORBEL JOSIANE'!S$12","v":"1904-01-01"},{"$f":"'CORBEL JOSIANE'!T$12","v":"1904-01-01"},{"$f":"'CORBEL JOSIANE'!U$12","v":"1904-01-01"},{"$f":"'CORBEL JOSIANE'!V$12","v":"1904-01-01"},{"$f":"'CORBEL JOSIANE'!W$12","v":"1904-01-01"},{"$f":"'CORBEL JOSIANE'!X$12","v":"1904-01-01"},{"$f":"'CORBEL JOSIANE'!Y$12","v":"1904-01-01"},{"$f":"'CORBEL JOSIANE'!Z$12","v":"1904-01-01"},{"$f":"'CORBEL JOSIANE'!AA$12","v":"1904-01-01"},{"$f":"sem_actu(C13:AB13)","v":0},{"$f":"sem_proch(D13:AB13)","v":0},{"$f":"mois_proch(C13:AB13)","v":0}]
["COUGARD Hubert","Rosier",{"$f":"'COUGARD HUBERT'!B$12","v":"1904-01-01"},{"$f":"'COUGARD HUBERT'!C$12","v":"1904-01-01"},{"$f":"'COUGARD HUBERT'!D$12","v":"1904-01-01"},{"$f":"'COUGARD HUBERT'!E$12","v":"1904-01-01"},{"$f":"'COUGARD HUBERT'!F$12","v":"1904-01-01"},{"$f":"'COUGARD HUBERT'!G$12","v":"1904-01-01"},{"$f":"'COUGARD HUBERT'!H$12","v":"1904-01-01"},{"$f":"'COUGARD HUBERT'!I$12","v":"1904-01-01"},{"$f":"'COUGARD HUBERT'!J$12","v":"1904-01-01"},{"$f":"'COUGARD HUBERT'!K$12","v":"1904-01-01"},{"$f":"'COUGARD HUBERT'!L$12","v":"1904-01-01"},{"$f":"'COUGARD HUBERT'!M$12","v":"1904-01-01"},{"$f":"'COUGARD HUBERT'!N$12","v":"1904-01-01"},{"$f":"'COUGARD HUBERT'!O$12","v":"1904-01-01"},{"$f":"'COUGARD HUBERT'!P$12","v":"1904-01-01"},{"$f":"'COUGARD HUBERT'!Q$12","v":"1904-01-01"},{"$f":"'COUGARD HUBERT'!R$12","v":"1904-01-01"},{"$f":"'COUGARD HUBERT'!S$12","v":"1904-01-01"},{"$f":"'COUGARD HUBERT'!T$12","v":"1904-01-01"},{"$f":"'COUGARD HUBERT'!U$12","v":"1904-01-01"},{"$f":"'COUGARD HUBERT'!V$12","v":"1904-01-01"},{"$f":"'COUGARD HUBERT'!W$12","v":"1904-01-01"},{"$f":"'COUGARD HUBERT'!X$12","v":"1904-01-01"},{"$f":"'COUGARD HUBERT'!Y$12","v":"1904-01-01"},{"$f":"'COUGARD HUBERT'!Z$12","v":"1904-01-01"},{"$f":"'COUGARD HUBERT'!AA$12","v":"1904-01-01"},{"$f":"sem_actu(C14:AB14)","v":0},{"$f":"sem_proch(D14:AB14)","v":0},{"$f":"mois_proch(C14:AB14)","v":0}]
["EL BACHIR Marie Josée","Océan",{"$f":"'EL BACHIR MARIE JOSE'!B$12","v":"1904-01-01"},{"$f":"'EL BACHIR MARIE JOSE'!C$12","v":"1904-01-01"},{"$f":"'EL BACHIR MARIE JOSE'!D$12","v":"1904-01-01"},{"$f":"'EL BACHIR MARIE JOSE'!E$12","v":"1904-01-01"},{"$f":"'EL BACHIR MARIE JOSE'!F$12","v":"1904-01-01"},{"$f":"'EL BACHIR MARIE JOSE'!G$12","v":"1904-01-01"},{"$f":"'EL BACHIR MARIE JOSE'!H$12","v":"1904-01-01"},{"$f":"'EL BACHIR MARIE JOSE'!I$12","v":"1904-01-01"},{"$f":"'EL BACHIR MARIE JOSE'!J$12","v":"1904-01-01"},{"$f":"'EL BACHIR MARIE JOSE'!K$12","v":"1904-01-01"},{"$f":"'EL BACHIR MARIE JOSE'!L$12","v":"a prévoir nov 2023 FOGD"},{"$f":"'EL BACHIR MARIE JOSE'!M$12","v":"1904-01-01"},{"$f":"'EL BACHIR MARIE JOSE'!N$12","v":"1904-01-01"},{"$f":"'EL BACHIR MARIE JOSE'!O$12","v":"1904-01-01"},{"$f":"'EL BACHIR MARIE JOSE'!P$12","v":"1904-01-01"},{"$f":"'EL BACHIR MARIE JOSE'!Q$12","v":"a prévoir en décembre 2021"},{"$f":"'EL BACHIR MARIE JOSE'!R$12","v":"1904-01-01"},{"$f":"'EL BACHIR MARIE JOSE'!S$12","v":"1904-01-01"},{"$f":"'EL BACHIR MARIE JOSE'!T$12","v":"1904-01-01"},{"$f":"'EL BACHIR MARIE JOSE'!U$12","v":"1904-01-01"},{"$f":"'EL BACHIR MARIE JOSE'!V$12","v":"1904-01-01"},{"$f":"'EL BACHIR MARIE JOSE'!W$12","v":"1904-01-01"},{"$f":"'EL BACHIR MARIE JOSE'!X$12","v":"1904-01-01"},{"$f":"'EL BACHIR MARIE JOSE'!Y$12","v":"1904-01-01"},{"$f":"'EL BACHIR MARIE JOSE'!Z$12","v":"1904-01-01"},{"$f":"'EL BACHIR MARIE JOSE'!AA$12","v":"a prévoir 09/2023"},{"$f":"sem_actu(C15:AB15)","v":0},{"$f":"sem_proch(D15:AB15)","v":0},{"$f":"mois_proch(C15:AB15)","v":0}]
["ELLIEN Marianne","Océan",{"$f":"'ELLIEN MARIANNE'!B$12","v":"1904-01-01"},{"$f":"'ELLIEN MARIANNE'!C$12","v":"1904-01-01"},{"$f":"'ELLIEN MARIANNE'!D$12","v":"1904-01-01"},{"$f":"'ELLIEN MARIANNE'!E$12","v":"1904-01-01"},{"$f":"'ELLIEN MARIANNE'!F$12","v":"1904-01-01"},{"$f":"'ELLIEN MARIANNE'!G$12","v":"a prévoir"},{"$f":"'ELLIEN MARIANNE'!H$12","v":"1904-01-01"},{"$f":"'ELLIEN MARIANNE'!I$12","v":"1904-01-01"},{"$f":"'ELLIEN MARIANNE'!J$12","v":"1904-01-01"},{"$f":"'ELLIEN MARIANNE'!K$12","v":"1904-01-01"},{"$f":"'ELLIEN MARIANNE'!L$12","v":"1904-01-01"},{"$f":"'ELLIEN MARIANNE'!M$12","v":"1904-01-01"},{"$f":"'ELLIEN MARIANNE'!N$12","v":"1904-01-01"},{"$f":"'ELLIEN MARIANNE'!O$12","v":"1904-01-01"},{"$f":"'ELLIEN MARIANNE'!P$12","v":"1904-01-01"},{"$f":"'ELLIEN MARIANNE'!Q$12","v":"1904-01-01"},{"$f":"'ELLIEN MARIANNE'!R$12","v":"1904-01-01"},{"$f":"'ELLIEN MARIANNE'!S$12","v":"1904-01-01"},{"$f":"'ELLIEN MARIANNE'!T$12","v":"1904-01-01"},{"$f":"'ELLIEN MARIANNE'!U$12","v":"1904-01-01"},{"$f":"'ELLIEN MARIANNE'!V$12","v":"1904-01-01"},{"$f":"'ELLIEN MARIANNE'!W$12","v":"1904-01-01"},{"$f":"'ELLIEN MARIANNE'!X$12","v":"1904-01-01"},{"$f":"'ELLIEN MARIANNE'!Y$12","v":"1904-01-01"},{"$f":"'ELLIEN MARIANNE'!Z$12","v":"1904-01-01"},{"$f":"'ELLIEN MARIANNE'!AA$12","v":"2025-11-25"},{"$f":"sem_actu(C16:AB16)","v":0},{"$f":"sem_proch(D16:AB16)","v":0},{"$f":"mois_proch(C16:AB16)","v":0}]
["EVEILLARD Daniel","Rosier",{"$f":"'EVEILLARD DANIEL'!B$12","v":"1904-01-01"},{"$f":"'EVEILLARD DANIEL'!C$12","v":"1904-01-01"},{"$f":"'EVEILLARD DANIEL'!D$12","v":"1904-01-01"},{"$f":"'EVEILLARD DANIEL'!E$12","v":"1904-01-01"},{"$f":"'EVEILLARD DANIEL'!F$12","v":"1904-01-01"},{"$f":"'EVEILLARD DANIEL'!G$12","v":"1904-01-01"},{"$f":"'EVEILLARD DANIEL'!H$12","v":"1904-01-01"},{"$f":"'EVEILLARD DANIEL'!I$12","v":"1904-01-01"},{"$f":"'EVEILLARD DANIEL'!J$12","v":"1904-01-01"},{"$f":"'EVEILLARD DANIEL'!K$12","v":"1904-01-01"},{"$f":"'EVEILLARD DANIEL'!L$12","v":"1904-01-01"},{"$f":"'EVEILLARD DANIEL'!M$12","v":"1904-01-01"},{"$f":"'EVEILLARD DANIEL'!N$12","v":"1904-01-01"},{"$f":"'EVEILLARD DANIEL'!O$12","v":"1904-01-01"},{"$f":"'EVEILLARD DANIEL'!P$12","v":"1904-01-01"},{"$f":"'EVEILLARD DANIEL'!Q$12","v":"1904-01-01"},{"$f":"'EVEILLARD DANIEL'!R$12","v":"1904-01-01"},{"$f":"'EVEILLARD DANIEL'!S$12","v":"1904-01-01"},{"$f":"'EVEILLARD DANIEL'!T$12","v":"1904-01-01"},{"$f":"'EVEILLARD DANIEL'!U$12","v":"1904-01-01"},{"$f":"'EVEILLARD DANIEL'!V$12","v":"1904-01-01"},{"$f":"'EVEILLARD DANIEL'!W$12","v":"1904-01-01"},{"$f":"'EVEILLARD DANIEL'!X$12","v":"1904-01-01"},{"$f":"'EVEILLARD DANIEL'!Y$12","v":"1904-01-01"},{"$f":"'EVEILLARD DANIEL'!Z$12","v":"1904-01-01"},{"$f":"'EVEILLARD DANIEL'!AA$12","v":"1904-01-01"},{"$f":"sem_actu(C17:AB17)","v":0},{"$f":"sem_proch(D17:AB17)","v":0},{"$f":"mois_proch(C17:AB17)","v":0}]
["GLEMEE Azelin","Océan",{"$f":"'GLEMEE AZELIN'!B$12","v":"1904-01-01"},{"$f":"'GLEMEE AZELIN'!C$12","v":"1904-01-01"},{"$f":"'GLEMEE AZELIN'!D$12","v":"1904-01-01"},{"$f":"'GLEMEE AZELIN'!E$12","v":"1904-01-01"},{"$f":"'GLEMEE AZELIN'!F$12","v":"1904-01-01"},{"$f":"'GLEMEE AZELIN'!G$12","v":"1904-01-01"},{"$f":"'GLEMEE AZELIN'!H$12","v":"1904-01-01"},{"$f":"'GLEMEE AZELIN'!I$12","v":"1904-01-01"},{"$f":"'GLEMEE AZELIN'!J$12","v":"1904-01-01"},{"$f":"'GLEMEE AZELIN'!K$12","v":"1904-01-01"},{"$f":"'GLEMEE AZELIN'!L$12","v":"1904-01-01"},{"$f":"'GLEMEE AZELIN'!M$12","v":"1904-01-01"},{"$f":"'GLEMEE AZELIN'!N$12","v":"1904-01-01"},{"$f":"'GLEMEE AZELIN'!O$12","v":"1904-01-01"},{"$f":"'GLEMEE AZELIN'!P$12","v":"1904-01-01"},{"$f":"'GLEMEE AZELIN'!Q$12","v":"a prévoir en 2023"},{"$f":"'GLEMEE AZELIN'!R$12","v":"1904-01-01"},{"$f":"'GLEMEE AZELIN'!S$12","v":"1904-01-01"},{"$f":"'GLEMEE AZELIN'!T$12","v":"1904-01-01"},{"$f":"'GLEMEE AZELIN'!U$12","v":"1904-01-01"},{"$f":"'GLEMEE AZELIN'!V$12","v":"1904-01-01"},{"$f":"'GLEMEE AZELIN'!W$12","v":"1904-01-01"},{"$f":"'GLEMEE AZELIN'!X$12","v":"1904-01-01"},{"$f":"'GLEMEE AZELIN'!Y$12","v":"1904-01-01"},{"$f":"'GLEMEE AZELIN'!Z$12","v":"1904-01-01"},{"$f":"'GLEMEE AZELIN'!AA$12","v":"1904-01-01"},{"$f":"sem_actu(C18:AB18)","v":0},{"$f":"sem_proch(D18:AB18)","v":0},{"$f":"mois_proch(C18:AB18)","v":0}]
["GODE Pierre-Yves","Soleil",{"$f":"'GODE PIERRE YVES'!B$12","v":"1904-01-01"},{"$f":"'GODE PIERRE YVES'!C$12","v":"1904-01-01"},{"$f":"'GODE PIERRE YVES'!D$12","v":"1904-01-01"},{"$f":"'GODE PIERRE YVES'!E$12","v":"1904-01-01"},{"$f":"'GODE PIERRE YVES'!F$12","v":"1904-01-01"},{"$f":"'GODE PIERRE YVES'!G$12","v":"2021-04-23T09:00:00"},{"$f":"'GODE PIERRE YVES'!H$12","v":"1904-01-01"},{"$f":"'GODE PIERRE YVES'!I$12","v":"1904-01-01"},{"$f":"'GODE PIERRE YVES'!J$12","v":"1904-01-01"},{"$f":"'GODE PIERRE YVES'!K$12","v":"1904-01-01"},{"$f":"'GODE PIERRE YVES'!L$12","v":"1904-01-01"},{"$f":"'GODE PIERRE YVES'!M$12","v":"1904-01-01"},{"$f":"'GODE PIERRE YVES'!N$12","v":"1904-01-01"},{"$f":"'GODE PIERRE YVES'!O$12","v":"1904-01-01"},{"$f":"'GODE PIERRE YVES'!P$12","v":"A prévoir en 2021"},{"$f":"'GODE PIERRE YVES'!Q$12","v":"1904-01-01"},{"$f":"'GODE PIERRE YVES'!R$12","v":"1904-01-01"},{"$f":"'GODE PIERRE YVES'!S$12","v":"1904-01-01"},{"$f":"'GODE PIERRE YVES'!T$12","v":"1904-01-01"},{"$f":"'GODE PIERRE YVES'!U$12","v":"1904-01-01"},{"$f":"'GODE PIERRE YVES'!V$12","v":"1904-01-01"},{"$f":"'GODE PIERRE YVES'!W$12","v":"1904-01-01"},{"$f":"'GODE PIERRE YVES'!X$12","v":"1904-01-01"},{"$f":"'GODE PIERRE YVES'!Y$12","v":"1904-01-01"},{"$f":"'GODE PIERRE YVES'!Z$12","v":"1904-01-01"},{"$f":"'GODE PIERRE YVES'!AA$12","v":"1904-01-01"},{"$f":"sem_actu(C19:AB19)","v":0},{"$f":"sem_proch(D19:AB19)","v":1},{"$f":"mois_proch(C19:AB19)","v":0}]
["GUEGUEN Alanig","Prairie",{"$f":"'GUEGUEN ALANIG'!B$12","v":"1904-01-01"},{"$f":"'GUEGUEN ALANIG'!C$12","v":"1904-01-01"},{"$f":"'GUEGUEN ALANIG'!D$12","v":"1904-01-01"},{"$f":"'GUEGUEN ALANIG'!E$12","v":"1904-01-01"},{"$f":"'GUEGUEN ALANIG'!F$12","v":"1904-01-01"},{"$f":"'GUEGUEN ALANIG'!G$12","v":"1904-01-01"},{"$f":"'GUEGUEN ALANIG'!H$12","v":"1904-01-01"},{"$f":"'GUEGUEN ALANIG'!I$12","v":"1904-01-01"},{"$f":"'GUEGUEN ALANIG'!J$12","v":"1904-01-01"},{"$f":"'GUEGUEN ALANIG'!K$12","v":"1904-01-01"}," ",{"$f":"'GUEGUEN ALANIG'!M$12","v":"1904-01-01"},{"$f":"'GUEGUEN ALANIG'!N$12","v":"1904-01-01"},{"$f":"'GUEGUEN ALANIG'!O$12","v":"1904-01-01"},{"$f":"'GUEGUEN ALANIG'!P$12","v":"1904-01-01"},{"$f":"'GUEGUEN ALANIG'!Q$12","v":"1904-01-01"},{"$f":"'GUEGUEN ALANIG'!R$12","v":"1904-01-01"},{"$f":"'GUEGUEN ALANIG'!S$12","v":"1904-01-01"},{"$f":"'GUEGUEN ALANIG'!T$12","v":"1904-01-01"},{"$f":"'GUEGUEN ALANIG'!U$12","v":"1904-01-01"},{"$f":"'GUEGUEN ALANIG'!V$12","v":"1904-01-01"},{"$f":"'GUEGUEN ALANIG'!W$12","v":"1904-01-01"},{"$f":"'GUEGUEN ALANIG'!X$12","v":"1904-01-01"},{"$f":"'GUEGUEN ALANIG'!Y$12","v":"1904-01-01"},{"$f":"'GUEGUEN ALANIG'!Z$12","v":"1904-01-01"},{"$f":"'GUEGUEN ALANIG'!AA$12","v":"1904-01-01"},{"$f":"sem_actu(C20:AB20)","v":0},{"$f":"sem_proch(D20:AB20)","v":0},{"$f":"mois_proch(C20:AB20)","v":0}]
["GUEGUEN Steven","Océan",{"$f":"'GUEGUEN STEVEN'!B$12","v":"1904-01-01"},{"$f":"'GUEGUEN STEVEN'!C$12","v":"1904-01-01"},{"$f":"'GUEGUEN STEVEN'!D$12","v":"1904-01-01"},{"$f":"'GUEGUEN STEVEN'!E$12","v":"1904-01-01"},{"$f":"'GUEGUEN STEVEN'!F$12","v":"1904-01-01"},{"$f":"'GUEGUEN STEVEN'!G$12","v":"1904-01-01"},{"$f":"'GUEGUEN STEVEN'!H$12","v":"1904-01-01"},{"$f":"'GUEGUEN STEVEN'!I$12","v":"1904-01-01"},{"$f":"'GUEGUEN STEVEN'!J$12","v":"1904-01-01"},{"$f":"'GUEGUEN STEVEN'!K$12","v":"1904-01-01"},{"$f":"'GUEGUEN STEVEN'!L$12","v":"1904-01-01"},{"$f":"'GUEGUEN STEVEN'!M$12","v":"1904-01-01"},{"$f":"'GUEGUEN STEVEN'!N$12","v":"1904-01-01"},{"$f":"'GUEGUEN STEVEN'!O$12","v":"1904-01-01"},{"$f":"'GUEGUEN STEVEN'!P$12","v":"1904-01-01"},{"$f":"'GUEGUEN STEVEN'!Q$12","v":"1904-01-01"},{"$f":"'GUEGUEN STEVEN'!R$12","v":"1904-01-01"},{"$f":"'GUEGUEN STEVEN'!S$12","v":"1904-01-01"},{"$f":"'GUEGUEN STEVEN'!T$12","v":"1904-01-01"},{"$f":"'GUEGUEN STEVEN'!U$12","v":"1904-01-01"},{"$f":"'GUEGUEN STEVEN'!V$12","v":"1904-01-01"},{"$f":"'GUEGUEN STEVEN'!W$12","v":"1904-01-01"},{"$f":"'GUEGUEN STEVEN'!X$12","v":"1904-01-01"},{"$f":"'GUEGUEN STEVEN'!Y$12","v":"1904-01-01"},{"$f":"'GUEGUEN STEVEN'!Z$12","v":"1904-01-01"},{"$f":"'GUEGUEN STEVEN'!AA$12","v":"a prévoir en 2038"},{"$f":"sem_actu(C21:AB21)","v":0},{"$f":"sem_proch(D21:AB21)","v":0},{"$f":"mois_proch(C21:AB21)","v":0}]
["GUEZO Claude","Rosier",{"$f":"'GUEZO CLAUDE'!B$12","v":"1904-01-01"},{"$f":"'GUEZO CLAUDE'!C$12","v":"1904-01-01"},{"$f":"'GUEZO CLAUDE'!D$12","v":"1904-01-01"},{"$f":"'GUEZO CLAUDE'!E$12","v":"1904-01-01"},{"$f":"'GUEZO CLAUDE'!F$12","v":"1904-01-01"},{"$f":"'GUEZO CLAUDE'!G$12","v":"1904-01-01"},{"$f":"'GUEZO CLAUDE'!H$12","v":"1904-01-01"},{"$f":"'GUEZO CLAUDE'!I$12","v":"1904-01-01"},{"$f":"'GUEZO CLAUDE'!J$12","v":"a prévoir"},{"$f":"'GUEZO CLAUDE'!K$12","v":"1904-01-01"},{"$f":"'GUEZO CLAUDE'!L$12","v":"1904-01-01"},{"$f":"'GUEZO CLAUDE'!M$12","v":"1904-01-01"},{"$f":"'GUEZO CLAUDE'!N$12","v":"1904-01-01"},{"$f":"'GUEZO CLAUDE'!O$12","v":"1904-01-01"},{"$f":"'GUEZO CLAUDE'!P$12","v":"1904-01-01"},{"$f":"'GUEZO CLAUDE'!Q$12","v":"1904-01-01"},{"$f":"'GUEZO CLAUDE'!R$12","v":"1904-01-01"},{"$f":"'GUEZO CLAUDE'!S$12","v":"1904-01-01"},{"$f":"'GUEZO CLAUDE'!T$12","v":"1904-01-01"},{"$f":"'GUEZO CLAUDE'!U$12","v":"1904-01-01"},{"$f":"'GUEZO CLAUDE'!V$12","v":"1904-01-01"},{"$f":"'GUEZO CLAUDE'!W$12","v":"1904-01-01"},{"$f":"'GUEZO CLAUDE'!X$12","v":"1904-01-01"},{"$f":"'GUEZO CLAUDE'!Y$12","v":"1904-01-01"},{"$f":"'GUEZO CLAUDE'!Z$12","v":"1904-01-01"},{"$f":"'GUEZO CLAUDE'!AA$12","v":"a prévoir en 2024"},{"$f":"sem_actu(C22:AB22)","v":0},{"$f":"sem_proch(D22:AB22)","v":0},{"$f":"mois_proch(C22:AB22)","v":0}]
["GUILLARD Nicole","Rosier",{"$f":"'GUILLARD NICOLE'!B$12","v":"1904-01-01"},{"$f":"'GUILLARD NICOLE'!C$12","v":"1904-01-01"},{"$f":"'GUILLARD NICOLE'!D$12","v":"1904-01-01"},{"$f":"'GUILLARD NICOLE'!E$12","v":"1904-01-01"},{"$f":"'GUILLARD NICOLE'!F$12","v":"1904-01-01"},{"$f":"'GUILLARD NICOLE'!G$12","v":"1904-01-01"},{"$f":"'GUILLARD NICOLE'!H$12","v":"1904-01-01"},{"$f":"'GUILLARD NICOLE'!I$12","v":"1904-01-01"},{"$f":"'GUILLARD NICOLE'!J$12","v":"1904-01-01"},{"$f":"'GUILLARD NICOLE'!K$12","v":"1904-01-01"},{"$f":"'GUILLARD NICOLE'!L$12","v":"1904-01-01"},{"$f":"'GUILLARD NICOLE'!M$12","v":"1904-01-01"},{"$f":"'GUILLARD NICOLE'!N$12","v":"1904-01-01"},{"$f":"'GUILLARD NICOLE'!O$12","v":"1904-01-01"},{"$f":"'GUILLARD NICOLE'!P$12","v":"1904-01-01"},{"$f":"'GUILLARD NICOLE'!Q$12","v":"1904-01-01"},{"$f":"'GUILLARD NICOLE'!R$12","v":"1904-01-01"},{"$f":"'GUILLARD NICOLE'!S$12","v":"1904-01-01"},{"$f":"'GUILLARD NICOLE'!T$12","v":"1904-01-01"},{"$f":"'GUILLARD NICOLE'!U$12","v":"1904-01-01"},{"$f":"'GUILLARD NICOLE'!V$12","v":"1904-01-01"},{"$f":"'GUILLARD NICOLE'!W$12","v":"1904-01-01"},{"$f":"'GUILLARD NICOLE'!X$12","v":"1904-01-01"},{"$f":"'GUILLARD NICOLE'!Y$12","v":"1904-01-01"},{"$f":"'GUILLARD NICOLE'!Z$12","v":"1904-01-01"},{"$f":"'GUILLARD NICOLE'!AA$12","v":"1904-01-01"},{"$f":"sem_actu(C23:AB23)","v":0},{"$f":"sem_proch(D23:AB23)","v":0},{"$f":"mois_proch(C23:AB23)","v":0}]
["GUILON Laurent","Soleil",{"$f":"'GUILON LAURENT'!B$12","v":"1904-01-01"},{"$f":"'GUILON LAURENT'!C$12","v":"1904-01-01"},{"$f":"'GUILON LAURENT'!D$12","v":"1904-01-01"},{"$f":"'GUILON LAURENT'!E$12","v":"1904-01-01"},{"$f":"'GUILON LAURENT'!F$12","v":"1904-01-01"},{"$f":"'GUILON LAURENT'!G$12","v":"a prévoir 05/2021"},{"$f":"'GUILON LAURENT'!H$12","v":"1904-01-01"},{"$f":"'GUILON LAURENT'!I$12","v":"1904-01-01"},{"$f":"'GUILON LAURENT'!J$12","v":"1904-01-01"},{"$f":"'GUILON LAURENT'!K$12","v":"1904-01-01"},{"$f":"'GUILON LAURENT'!L$12","v":"1904-01-01"},{"$f":"'GUILON LAURENT'!M$12","v":"1904-01-01"},{"$f":"'GUILON LAURENT'!N$12","v":"1904-01-01"},{"$f":"'GUILON LAURENT'!O$12","v":"1904-01-01"},{"$f":"'GUILON LAURENT'!P$12","v":"1904-01-01"},{"$f":"'GUILON LAURENT'!Q$12","v":"a prévoir en 11/2021"},{"$f":"'GUILON LAURENT'!R$12","v":"1904-01-01"},{"$f":"'GUILON LAURENT'!S$12","v":"1904-01-01"},{"$f":"'GUILON LAURENT'!T$12","v":"1904-01-01"},{"$f":"'GUILON LAURENT'!U$12","v":"1904-01-01"},{"$f":"'GUILON LAURENT'!V$12","v":"1904-01-01"},{"$f":"'GUILON LAURENT'!W$12","v":"1904-01-01"},{"$f":"'GUILON LAURENT'!X$12","v":"1904-01-01"},{"$f":"'GUILON LAURENT'!Y$12","v":"1904-01-01"},{"$f":"'GUILON LAURENT'!Z$12","v":"1904-01-01"},{"$f":"'GUILON LAURENT'!AA$12","v":"1904-01-01"},{"$f":"sem_actu(C24:AB24)","v":0},{"$f":"sem_proch(D24:AB24)","v":0},{"$f":"mois_proch(C24:AB24)","v":0}]
["HAMON Karine ","Prairie",{"$f":"'HAMON KARINE'!B$12","v":"1904-01-01"},{"$f":"'HAMON KARINE'!C$12","v":"1904-01-01"},{"$f":"'HAMON KARINE'!D$12","v":"1904-01-01"},{"$f":"'HAMON KARINE'!E$12","v":"1904-01-01"},{"$f":"'HAMON KARINE'!F$12","v":"1904-01-01"},{"$f":"'HAMON KARINE'!G$12","v":"1904-01-01"},{"$f":"'HAMON KARINE'!H$12","v":"1904-01-01"},{"$f":"'HAMON KARINE'!I$12","v":"1904-01-01"},{"$f":"'HAMON KARINE'!J$12","v":"1904-01-01"},{"$f":"'HAMON KARINE'!K$12","v":"1904-01-01"},{"$f":"'HAMON KARINE'!L$12","v":"1904-01-01"},{"$f":"'HAMON KARINE'!M$12","v":"1904-01-01"},{"$f":"'HAMON KARINE'!N$12","v":"1904-01-01"},{"$f":"'HAMON KARINE'!O$12","v":"1904-01-01"},{"$f":"'HAMON KARINE'!P$12","v":"1904-01-01"},{"$f":"'HAMON KARINE'!Q$12","v":"1904-01-01"},{"$f":"'HAMON KARINE'!R$12","v":"1904-01-01"},{"$f":"'HAMON KARINE'!S$12","v":"1904-01-01"},{"$f":"'HAMON KARINE'!T$12","v":"1904-01-01"},{"$f":"'HAMON KARINE'!U$12","v":"1904-01-01"},{"$f":"'HAMON KARINE'!V$12","v":"1904-01-01"},{"$f":"'HAMON KARINE'!W$12","v":"1904-01-01"},{"$f":"'HAMON KARINE'!X$12","v":"1904-01-01"},{"$f":"'HAMON KARINE'!Y$12","v":"1904-01-01"},{"$f":"'HAMON KARINE'!Z$12","v":"1904-01-01"},{"$f":"'HAMON KARINE'!AA$12","v":"1904-01-01"},{"$f":"sem_actu(C25:AB25)","v":0},{"$f":"sem_proch(D25:AB25)","v":0},{"$f":"mois_proch(C25:AB25)","v":0}]
["HARNOIS Arlette","Soleil",{"$f":"'HARNOIS ARLETTE'!B$12","v":"1904-01-01"},{"$f":"'HARNOIS ARLETTE'!C$12","v":"1904-01-01"},{"$f":"'HARNOIS ARLETTE'!D$12","v":"1904-01-01"},{"$f":"'HARNOIS ARLETTE'!E$12","v":"1904-01-01"},{"$f":"'HARNOIS ARLETTE'!F$12","v":"1904-01-01"},{"$f":"'HARNOIS ARLETTE'!G$12","v":"a prévoir 11/2021"},{"$f":"'HARNOIS ARLETTE'!H$12","v":"1904-01-01"},{"$f":"'HARNOIS ARLETTE'!I$12","v":"1904-01-01"},{"$f":"'HARNOIS ARLETTE'!J$12","v":"1904-01-01"},{"$f":"'HARNOIS ARLETTE'!K$12","v":"1904-01-01"},{"$f":"'HARNOIS ARLETTE'!L$12","v":"1904-01-01"},{"$f":"'HARNOIS ARLETTE'!M$12","v":"1904-01-01"},{"$f":"'HARNOIS ARLETTE'!N$12","v":"1904-01-01"},{"$f":"'HARNOIS ARLETTE'!O$12","v":"1904-01-01"},{"$f":"'HARNOIS ARLETTE'!P$12","v":"1904-01-01"},{"$f":"'HARNOIS ARLETTE'!Q$12","v":"a prévoir 07/2021"},{"$f":"'HARNOIS ARLETTE'!R$12","v":"1904-01-01"},{"$f":"'HARNOIS ARLETTE'!S$12","v":"1904-01-01"},{"$f":"'HARNOIS ARLETTE'!T$12","v":"1904-01-01"},{"$f":"'HARNOIS ARLETTE'!U$12","v":"1904-01-01"},{"$f":"'HARNOIS ARLETTE'!V$12","v":"1904-01-01"},{"$f":"'HARNOIS ARLETTE'!W$12","v":"1904-01-01"},{"$f":"'HARNOIS ARLETTE'!X$12","v":"1904-01-01"},{"$f":"'HARNOIS ARLETTE'!Y$12","v":"1904-01-01"},{"$f":"'HARNOIS ARLETTE'!Z$12","v":"1904-01-01"},{"$f":"'HARNOIS ARLETTE'!AA$12","v":"1904-01-01"},{"$f":"sem_actu(C26:AB26)","v":0},{"$f":"sem_proch(D26:AB26)","v":0},{"$f":"mois_proch(C26:AB26)","v":0}]
["HARZELLEC Robert","Océan",{"$f":"'HARZELLEC ROBERT'!B$12","v":"1904-01-01"},{"$f":"'HARZELLEC ROBERT'!C$12","v":"1904-01-01"},{"$f":"'HARZELLEC ROBERT'!D$12","v":"1904-01-01"},{"$f":"'HARZELLEC ROBERT'!E$12","v":"1904-01-01"},{"$f":"'HARZELLEC ROBERT'!F$12","v":"1904-01-01"},{"$f":"'HARZELLEC ROBERT'!G$12","v":"a prévoir"},{"$f":"'HARZELLEC ROBERT'!H$12","v":"1904-01-01"},{"$f":"'HARZELLEC ROBERT'!I$12","v":"1904-01-01"},{"$f":"'HARZELLEC ROBERT'!J$12","v":"1904-01-01"},{"$f":"'HARZELLEC ROBERT'!K$12","v":"1904-01-01"},{"$f":"'HARZELLEC ROBERT'!L$12","v":"1904-01-01"},{"$f":"'HARZELLEC ROBERT'!M$12","v":"1904-01-01"},{"$f":"'HARZELLEC ROBERT'!N$12","v":"1904-01-01"},{"$f":"'HARZELLEC ROBERT'!O$12","v":"1904-01-01"},{"$f":"'HARZELLEC ROBERT'!P$12","v":"1904-01-01"},{"$f":"'HARZELLEC ROBERT'!Q$12","v":"1904-01-01"},{"$f":"'HARZELLEC ROBERT'!R$12","v":"1904-01-01"},{"$f":"'HARZELLEC ROBERT'!S$12","v":"1904-01-01"},{"$f":"'HARZELLEC ROBERT'!T$12","v":"1904-01-01"},{"$f":"'HARZELLEC ROBERT'!U$12","v":"1904-01-01"},{"$f":"'HARZELLEC ROBERT'!V$12","v":"1904-01-01"},{"$f":"'HARZELLEC ROBERT'!W$12","v":"1904-01-01"},{"$f":"'HARZELLEC ROBERT'!X$12","v":"1904-01-01"},{"$f":"'HARZELLEC ROBERT'!Y$12","v":"1904-01-01"},{"$f":"'HARZELLEC ROBERT'!Z$12","v":"1904-01-01"},{"$f":"'HARZELLEC ROBERT'!AA$12","v":"1904-01-01"},{"$f":"sem_actu(C27:AB27)","v":0},{"$f":"sem_proch(D27:AB27)","v":0},{"$f":"mois_proch(C27:AB27)","v":0}]
["JOSSELIN Catherine","Prairie",{"$f":"'JOSSELIN CATHERINE'!B$12","v":"1904-01-01"},{"$f":"'JOSSELIN CATHERINE'!C$12","v":"1904-01-01"},{"$f":"'JOSSELIN CATHERINE'!D$12","v":"1904-01-01"},{"$f":"'JOSSELIN CATHERINE'!E$12","v":"1904-01-01"},{"$f":"'JOSSELIN CATHERINE'!F$12","v":"1904-01-01"},{"$f":"'JOSSELIN CATHERINE'!G$12","v":"1904-01-01"},{"$f":"'JOSSELIN CATHERINE'!H$12","v":"1904-01-01"},{"$f":"'JOSSELIN CATHERINE'!I$12","v":"1904-01-01"},{"$f":"'JOSSELIN CATHERINE'!J$12","v":"1904-01-01"},{"$f":"'JOSSELIN CATHERINE'!K$12","v":"1904-01-01"},{"$f":"'JOSSELIN CATHERINE'!L$12","v":"1904-01-01"},{"$f":"'JOSSELIN CATHERINE'!M$12","v":"1904-01-01"},{"$f":"'JOSSELIN CATHERINE'!N$12","v":"a prévoir en juin 2022"},{"$f":"'JOSSELIN CATHERINE'!O$12","v":"1904-01-01"},{"$f":"'JOSSELIN CATHERINE'!P$12","v":"1904-01-01"},{"$f":"'JOSSELIN CATHERINE'!Q$12","v":"1904-01-01"},{"$f":"'JOSSELIN CATHERINE'!R$12","v":"1904-01-01"},{"$f":"'JOSSELIN CATHERINE'!S$12","v":"1904-01-01"},{"$f":"'JOSSELIN CATHERINE'!T$12","v":"1904-01-01"},{"$f":"'JOSSELIN CATHERINE'!U$12","v":"1904-01-01"},{"$f":"'JOSSELIN CATHERINE'!V$12","v":"1904-01-01"},{"$f":"'JOSSELIN CATHERINE'!W$12","v":"1904-01-01"},{"$f":"'JOSSELIN CATHERINE'!X$12","v":"1904-01-01"},{"$f":"'JOSSELIN CATHERINE'!Y$12","v":"1904-01-01"},{"$f":"'JOSSELIN CATHERINE'!Z$12","v":"1904-01-01"},{"$f":"'JOSSELIN CATHERINE'!AA$12","v":"1904-01-01"},{"$f":"sem_actu(C28:AB28)","v":0},{"$f":"sem_proch(D28:AB28)","v":0},{"$f":"mois_proch(C28:AB28)","v":0}]
["KADI Saïd"," Prairie",{"$f":"'KADI SAID'!B$12","v":"1904-01-01"},{"$f":"'KADI SAID'!C$12","v":"1904-01-01"},{"$f":"'KADI SAID'!D$12","v":"1904-01-01"},{"$f":"'KADI SAID'!E$12","v":"1904-01-01"},{"$f":"'KADI SAID'!F$12","v":"1904-01-01"},{"$f":"'KADI SAID'!G$12","v":"1904-01-01"},{"$f":"'KADI SAID'!H$12","v":"1904-01-01"},{"$f":"'KADI SAID'!I$12","v":"1904-01-01"},{"$f":"'KADI SAID'!J$12","v":"1904-01-01"},{"$f":"'KADI SAID'!K$12","v":"1904-01-01"},{"$f":"'KADI SAID'!L$12","v":"1904-01-01"},{"$f":"'KADI SAID'!M$12","v":"1904-01-01"},{"$f":"'KADI SAID'!N$12","v":"1904-01-01"},{"$f":"'KADI SAID'!O$12","v":"1904-01-01"},{"$f":"'KADI SAID'!P$12","v":"1904-01-01"},{"$f":"'KADI SAID'!Q$12","v":"1904-01-01"},{"$f":"'KADI SAID'!R$12","v":"1904-01-01"},{"$f":"'KADI SAID'!S$12","v":"1904-01-01"},{"$f":"'KADI SAID'!T$12","v":"1904-01-01"},{"$f":"'KADI SAID'!U$12","v":"1904-01-01"},{"$f":"'KADI SAID'!V$12","v":"1904-01-01"},{"$f":"'KADI SAID'!W$12","v":"1904-01-01"},{"$f":"'KADI SAID'!X$12","v":"1904-01-01"},{"$f":"'KADI SAID'!Y$12","v":"1904-01-01"},{"$f":"'KADI SAID'!Z$12","v":"1904-01-01"},{"$f":"'KADI SAID'!AA$12","v":"1904-01-01"},{"$f":"sem_actu(C29:AB29)","v":0},{"$f":"sem_proch(D29:AB29)","v":0},{"$f":"mois_proch(C29:AB29)","v":0}]
["KERHERVE Jean","Prairie",{"$f":"'BOULARD FABRICE'!B$12","v":"1904-01-01"},null,null,null,null,null,null,null,null,null,null,null,null,null,null,null,null,null,null,null,null,null,null,null,null,null,{"$f":"sem_actu(C30:AB30)","v":0},{"$f":"sem_proch(D30:AB30)","v":0},{"$f":"mois_proch(C30:AB30)","v":0}]
["LANGLAIS Jérôme","Océan",{"$f":"'BOULARD FABRICE'!B$12","v":"1904-01-01"},null,null,null,null,null,null,null,null,null,null,null,null,null,null,null,null,null,null,null,null,null,null,null,null,null,{"$f":"sem_actu(C31:AB31)","v":0},{"$f":"sem_proch(D31:AB31)","v":0},{"$f":"mois_proch(C31:AB31)","v":0}]
["LE COZ Jean -Louis","rosier",{"$f":"'BOULARD FABRICE'!B$12","v":"1904-01-01"},null,null,null,null,null,null,null,null,null,null,null,null,null,null,null,null,null,null,null,null,null,null,null,null,null,{"$f":"sem_actu(C32:AB32)","v":0},{"$f":"sem_proch(D32:AB32)","v":0},{"$f":"mois_proch(C32:AB32)","v":0}]
["LE COZLER Odile","Rosier",{"$f":"'BOULARD FABRICE'!B$12","v":"1904-01-01"},null,null,null,null,null,null,null,null,null,null,null,null,null,null,null,null,null,null,null,null,null,null,null,null,null,{"$f":"sem_actu(C33:AB33)","v":0},{"$f":"sem_proch(D33:AB33)","v":0},{"$f":"mois_proch(C33:AB33)","v":0}]
["LE FLOUR François","Rosier",{"$f":"'BOULARD FABRICE'!B$12","v":"1904-01-01"},null,null,null,null,null,null,null,null,null,null,null,null,null,null,null,null,null,null,null,null,null,null,null,null,null,{"$f":"sem_actu(C34:AB34)","v":0},{"$f":"sem_proch(D34:AB34)","v":0},{"$f":"mois_proch(C34:AB34)","v":0}]
["LE HUIDOUX Jeannine ","Océan",{"$f":"'BOULARD FABRICE'!B$12","v":"1904-01-01"},null,null,null,null,null,null,null,null,null,null,null,null,null,null,null,null,null,null,null,null,null,null,null,null,null,{"$f":"sem_actu(C35:AB35)","v":0},{"$f":"sem_proch(D35:AB35)","v":0},{"$f":"mois_proch(C35:AB35)","v":0}]
["LE JOSSEC Céline","Soleil",{"$f":"'BOULARD FABRICE'!B$12","v":"1904-01-01"},null,null,null,null,null,null,null,null,null,null,null,null,null,null,null,null,null,null,null,null,null,null,null,null,null,{"$f":"sem_actu(C36:AB36)","v":0},{"$f":"sem_proch(D36:AB36)","v":0},{"$f":"mois_proch(C36:AB36)","v":0}]
["LE MAITRE Bruno","Soleil",{"$f":"'BOULARD FABRICE'!B$12","v":"1904-01-01"},null,null,null,null,null,null,null,null,null,null,null,null,null,null,null,null,null,null,null,null,null,null,null,null,null,{"$f":"sem_actu(C37:AB37)","v":0},{"$f":"sem_proch(D37:AB37)","v":0},{"$f":"mois_proch(C37:AB37)","v":0}]
["LE NECHET Gwenaël","Prairie",{"$f":"'BOULARD FABRICE'!B$12","v":"1904-01-01"},null,null,null,null,null,null,null,null,null,null,null,null,null,null,null,null,null,null,null,null,null,null,null,null,null,{"$f":"sem_actu(C38:AB38)","v":0},{"$f":"sem_proch(D38:AB38)","v":0},{"$f":"mois_proch(C38:AB38)","v":0}]
["LE ROCH Sandrine","Soleil",{"$f":"'BOULARD FABRICE'!B$12","v":"1904-01-01"},null,null,null,null,null,null,null,null,null,null,null,null,null,null,null,null,null,null,null,null,null,null,null,null,null,{"$f":"sem_actu(C39:AB39)","v":0},{"$f":"sem_proch(D39:AB39)","v":0},{"$f":"mois_proch(C39:AB39)","v":0}]
["LE ROUX Alain","Prairie",{"$f":"'BOULARD FABRICE'!B$12","v":"1904-01-01"},null,null,null,null,null,null,null,null,null,null,null,null,null,null,null,null,null,null,null,null,null,null,null,null,null,{"$f":"sem_actu(C40:AB40)","v":0},{"$f":"sem_proch(D40:AB40)","v":0},{"$f":"mois_proch(C40:AB40)","v":0}]
["LEFRANC Caroline","Soleil",{"$f":"'BOULARD FABRICE'!B$12","v":"1904-01-01"},null,null,null,null,null,null,null,null,null,null,null,null,null,null,null,null,null,null,null,null,null,null,null,null,null,{"$f":"sem_actu(C41:AB41)","v":0},{"$f":"sem_proch(D41:AB41)","v":0},{"$f":"mois_proch(C41:AB41)","v":0}]
["LORGUILLOUS Eric","Rosier",{"$f":"'BOULARD FABRICE'!B$12","v":"1904-01-01"},null,null,null,null,null,null,null,null,null,null,null,null,null,null,null,null,null,null,null,null,null,null,null,null,null,{"$f":"sem_actu(C42:AB42)","v":0},{"$f":"sem_proch(D42:AB42)","v":0},{"$f":"mois_proch(C42:AB42)","v":0}]
["LOUESDON Jacques","Soleil",{"$f":"'BOULARD FABRICE'!B$12","v":"1904-01-01"},null,null,null,null,null,null,null,null,null,null,null,null,null,null,null,null,null,null,null,null,null,null,null,null,null,{"$f":"sem_actu(C43:AB43)","v":0},{"$f":"sem_proch(D43:AB43)","v":0},{"$f":"mois_proch(C43:AB43)","v":0}]
["LOZACH Ginette","Rosier",{"$f":"'BOULARD FABRICE'!B$12","v":"1904-01-01"},null,null,null,null,null,null,null,null,null,null,null,null,null,null,null,null,null,null,null,null,null,null,null,null,null,{"$f":"sem_actu(C44:AB44)","v":0},{"$f":"sem_proch(D44:AB44)","v":0},{"$f":"mois_proch(C44:AB44)","v":0}]
["MANDROUX Christine","Océan",{"$f":"'BOULARD FABRICE'!B$12","v":"1904-01-01"},null,null,null,null,null,null,null,null,null,null,null,null,null,null,null,null,null,null,null,null,null,null,null,null,null,{"$f":"sem_actu(C45:AB45)","v":0},{"$f":"sem_proch(D45:AB45)","v":0},{"$f":"mois_proch(C45:AB45)","v":0}]
["MEIFFREN Cyril","océan",{"$f":"'BOULARD FABRICE'!B$12","v":"1904-01-01"},null,null,null,null,null,null,null,null,null,null,null,null,null,null,null,null,null,null,null,null,null,null,null,null,null,{"$f":"sem_actu(C46:AB46)","v":0},{"$f":"sem_proch(D46:AB46)","v":0},{"$f":"mois_proch(C46:AB46)","v":0}]
["MOAL Gisèle","Rosier",{"$f":"'BOULARD FABRICE'!B$12","v":"1904-01-01"},null,null,null,null,null,null,null,null,null,null,null,null,null,null,null,null,null,null,null,null,null,null,null,null,null,{"$f":"sem_actu(C47:AB47)","v":0},{"$f":"sem_proch(D47:AB47)","v":0},{"$f":"mois_proch(C47:AB47)","v":0}]
["MOY Yvon","Soleil",{"$f":"'BOULARD FABRICE'!B$12","v":"1904-01-01"},null,null,null,null,null,null,null,null,null,null,null,null,null,null,null,null,null,null,null,null,null,null,null,null,null,{"$f":"sem_actu(C48:AB48)","v":0},{"$f":"sem_proch(D48:AB48)","v":0},{"$f":"mois_proch(C48:AB48)","v":0}]
["NOHAIC Jean Francois","Océan",{"$f":"'BOULARD FABRICE'!B$12","v":"1904-01-01"},null,null,null,null,null,null,null,null,null,null,null,null,null,null,null,null,null,null,null,null,null,null,null,null,null,{"$f":"sem_actu(C49:AB49)","v":0},{"$f":"sem_proch(D49:AB49)","v":0},{"$f":"mois_proch(C49:AB49)","v":0}]
["PATUREL Corentin","Océan",{"$f":"'BOULARD FABRICE'!B$12","v":"1904-01-01"},null,null,null,null,null,null,null,null,null,null,null,null,null,null,null,null,null,null,null,null,null,null,null,null,null,{"$f":"sem_actu(C50:AB50)","v":0},{"$f":"sem_proch(D50:AB50)","v":0},{"$f":"mois_proch(C50:AB50)","v":0}]
["PIERZOU Laurence","Prairie",{"$f":"'BOULARD FABRICE'!B$12","v":"1904-01-01"},null,null,null,null,null,null,null,null,null,null,null,null,null,null,null,null,null,null,null,null,null,null,null,null,null,{"$f":"sem_actu(C51:AB51)","v":0},{"$f":"sem_proch(D51:AB51)","v":0},{"$f":"mois_proch(C51:AB51)","v":0}]
["POUTEAU Joelle","Océan",{"$f":"'BOULARD FABRICE'!B$12","v":"1904-01-01"},null,null,null,null,null,null,null,null,null,null,null,null,null,null,null,null,null,null,null,null,null,null,null,null,null,{"$f":"sem_actu(C52:AB52)","v":0},{"$f":"sem_proch(D52:AB52)","v":0},{"$f":"mois_proch(C52:AB52)","v":0}]
["PRIGENT Frédéric","Soleil",{"$f":"'BOULARD FABRICE'!B$12","v":"1904-01-01"},null,null,null,null,null,null,null,null,null,null,null,null,null,null,null,null,null,null,null,null,null,null,null,null,null,{"$f":"sem_actu(C53:AB53)","v":0},{"$f":"sem_proch(D53:AB53)","v":0},{"$f":"mois_proch(C53:AB53)","v":0}]
["QUIVIGER Stéphane","Océan",{"$f":"'BOULARD FABRICE'!B$12","v":"1904-01-01"},null,null,null,null,null,null,null,null,null,null,null,null,null,null,null,null,null,null,null,null,null,null,null,null,null,{"$f":"sem_actu(C54:AB54)","v":0},{"$f":"sem_proch(D54:AB54)","v":0},{"$f":"mois_proch(C54:AB54)","v":0}]
["RISTIC Marie Annie","Prairie",{"$f":"'BOULARD FABRICE'!B$12","v":"1904-01-01"},null,null,null,null,null,null,null,null,null,null,null,null,null,null,null,null,null,null,null,null,null,null,null,null,null,{"$f":"sem_actu(C55:AB55)","v":0},{"$f":"sem_proch(D55:AB55)","v":0},{"$f":"mois_proch(C55:AB55)","v":0}]
["ROPARS Emilie","Prairie",{"$f":"'BOULARD FABRICE'!B$12","v":"1904-01-01"},null,null,null,null,null,null,null,null,null,null,null,null,null,null,null,null,null,null,null,null,null,null,null,null,null,{"$f":"sem_actu(C56:AB56)","v":0},{"$f":"sem_proch(D56:AB56)","v":0},{"$f":"mois_proch(C56:AB56)","v":0}]
["ROUXEL Jean-Michel","Soleil",{"$f":"'BOULARD FABRICE'!B$12","v":"1904-01-01"},null,null,null,null,null,null,null,null,null,null,null,null,null,null,null,null,null,null,null,null,null,null,null,null,null,{"$f":"sem_actu(C57:AB57)","v":0},{"$f":"sem_proch(D57:AB57)","v":0},{"$f":"mois_proch(C57:AB57)","v":0}]
["SERVEL Mickael","Prairie",{"$f":"'BOULARD FABRICE'!B$12","v":"1904-01-01"},null,null,null,null,null,null,null,null,null,null,null,null,null,null,null,null,null,null,null,null,null,null,null,null,null,{"$f":"sem_actu(C58:AB58)","v":0},{"$f":"sem_proch(D58:AB58)","v":0},{"$f":"mois_proch(C58:AB58)","v":0}]
["THOMAS Joseph","Rosier",{"$f":"'BOULARD FABRICE'!B$12","v":"1904-01-01"},null,null,null,null,null,null,null,null,null,null,null,null,null,null,null,null,null,null,null,null,null,null,null,null,null,{"$f":"sem_actu(C59:AB59)","v":0},{"$f":"sem_proch(D59:AB59)","v":0},{"$f":"mois_proch(C59:AB59)","v":0}]
["TOUBLANC Stéphane","soleil",{"$f":"'BOULARD FABRICE'!B$12","v":"1904-01-01"},null,null,null,null,null,null,null,null,null,null,null,null,null,null,null,null,null,null,null,null,null,null,null,null,null,{"$f":"sem_actu(C60:AB60)","v":0},{"$f":"sem_proch(D60:AB60)","v":0},{"$f":"mois_proch(C60:AB60)","v":0}]
["TOUMINET Marielle","Océan",{"$f":"'BOULARD FABRICE'!B$12","v":"1904-01-01"},null,null,null,null,null,null,null,null,null,null,null,null,null,null,null,null,null,null,null,null,null,null,null,null,null,{"$f":"sem_actu(C61:AB61)","v":0},{"$f":"sem_proch(D61:AB61)","v":0},{"$f":"mois_proch(C61:AB61)","v":0}]
["TREMEUR Sylvia","Rosier",{"$f":"'BOULARD FABRICE'!B$12","v":"1904-01-01"},null,null,null,null,null,null,null,null,null,null,null,null,null,null,null,null,null,null,null,null,null,null,null,null,null,{"$f":"sem_actu(C62:AB62)","v":0},{"$f":"sem_proch(D62:AB62)","v":0},{"$f":"mois_proch(C62:AB62)","v":0}]

{"sheet":"modele","index":1,"n_rows":15,"n_cols":27,"rows_kept":15,"cut":false,"hidden":false,"merged":[]}
[{"$f":"RIGHT(CELL(\"nomfichier\",A1),LEN(CELL(\"nomfichier\",A1))-FIND(\"]\",CELL(\"nomfichier\",A1)))","v":"modele"}]
["Régime alimentaire",null,"poids"]
["Boisson",null,"taille"]
["supplément alimentaire"]
[]
[null,"Anesthésie","bilan de déglutition","bilan sanguin","Chirurgie (ortho ou autres)","cardiologie","dentiste","dépistage colo-rectal","dermatologie","ECG","endocrinologie","gastrologie","Gynécologie","mammographie","MPR","neurologie","ophtalmologie","ORL","Orthoprothésiste","pédicure","pneumologie","Psychiatrie","radiologie, scan etc","urologie","vaccin COVID","vaccin grippe","vaccin autres"]
["commentaire"]
["Modification au niveau du traitement"]
["Nom du médecin"]
["lieu du RDV"]
["date du dernier RVD"]
["Prochain RDV"]
["Réservation de Véhicule"]
["Véhicule"]
["Accompagnateur"]

{"sheet":"AMSELLEM ANNIE","index":2,"n_rows":15,"n_cols":27,"rows_kept":15,"cut":false,"hidden":false,"merged":[]}
[{"$f":"RIGHT(CELL(\"nomfichier\",A1),LEN(CELL(\"nomfichier\",A1))-FIND(\"]\",CELL(\"nomfichier\",A1)))","v":"AMSELLEM ANNIE"}]
["Régime alimentaire",null,"poids"]
["Boisson",null,"taille"]
["supplément alimentaire"]
[]
[null,"Anesthésie","bilan de déglutition","bilan sanguin","Chirurgie (ortho ou autres)","cardiologie","dentiste","dépistage colo-rectal","dermatologie","ECG","endocrinologie","gastrologie","Gynécologie","mammographie","MPR","neurologie","ophtalmologie","ORL","Orthoprothésiste","pédicure","pneumologie","Psychiatrie","radiologie, scan etc","urologie","vaccin COVID","vaccin grippe","vaccin autres"]
["commentaire",null,"Dr Maestra (CH Carhaix) pour bilan de déglutiton (probable trouble sensibilité pharyngo laryngée +  phen.distractif + grosse bouchée expliquen FR)",null,null,null,null,null,null,null,null,null,"Pas de nécessité de suivi",null,null,null,"refuse correction et suivi ophtalmo","Dr Maestra (CH Carhaix) pour bilan de déglutiton (probable trouble sensibilité pharyngo laryngée +  phen.distractif + grosse bouchée expliquen FR)",null,"suivi toutes les 4/6 semaines en cabinet de ville",null,null,null,null,null,null,"rappel vaccin: revaxis 2006"]
["Modification au niveau du traitement"]
["Nom du médecin",null,null,null,null,null,null,null,null,null,null,null,null,null,null,null,null,null,null,"Apolinaire"]
["lieu du RDV",null,null,null,null,null,null,null,null,null,null,null,"CH Carhaix"]
["date du dernier RVD",null,null,"2018-12-27",null,null,null,null,null,null,null,null,"2018-07-03","2018-03-05"]
["Prochain RDV",null,null,null,null,null,null,null,null,null,null,null,null,null,null,null,null,null,null,"2021-04-14T11:00:00"]
["Réservation de Véhicule",null,null,null,null,null,null,null,null,null,null,null,null,null,null,null,null,null,null,"oui "]
["Véhicule",null,null,null,null,null,null,null,null,null,null,null,null,null,null,null,null,null,null,"Kangoo"]
["Accompagnateur"]

{"sheet":"ANDRE ALAIN","index":3,"n_rows":15,"n_cols":27,"rows_kept":15,"cut":false,"hidden":false,"merged":[]}
[{"$f":"RIGHT(CELL(\"nomfichier\",A1),LEN(CELL(\"nomfichier\",A1))-FIND(\"]\",CELL(\"nomfichier\",A1)))","v":"ANDRE ALAIN"}]
["Régime alimentaire",null,"poids"]
["Boisson",null,"taille"]
["supplément alimentaire"]
[]
[null,"Anesthésie","bilan de déglutition","bilan sanguin","Chirurgie (ortho ou autres)","cardiologie","dentiste","dépistage colo-rectal","dermatologie","ECG","endocrinologie","gastrologie","Gynécologie","mammographie","MPR","neurologie","ophtalmologie","ORL","Orthoprothésiste","pédicure","pneumologie","Psychiatrie","radiologie, scan etc","urologie","vaccin COVID","vaccin grippe","vaccin autres"]
["commentaire",null,null,null,null,null,"Dernière consultation le 13/10/2017, extraction 2 racines inférieures gauches",null,null,"nouveau à prévoir",null,null,null,null,null,"rdv AVEC Dr Kuete Tasseng (CH de St Brieuc) le 30/10/19, RDV à prévoir en 10/2020: revu 15/01/2021? Mr Andre est mis sur liste d'attente pour 1 RDV avec le DR Bourriche Ch St Brieuc. Aurait du avoir RDV le 23/01/2021, remis sur liste d'attente"]
["Modification au niveau du traitement"]
["Nom du médecin",null,null,null,null,null,null,null,null,null,null,null,null,null,null,null,"Dr Estable"]
["lieu du RDV",null,null,null,null,null,"Callac",null,null,null,null,null,null,null,null,null,"CH Guingamp"]
["date du dernier RVD",null,null,null,null,null,"2017-01-13",null,null,"2020-03-13",null,null,null,null,null,"2019-10-30","2021-02-01",null,null,null,null,null,null,null,null,null,"2016-10-21"]
["Prochain RDV",null,null,null,null,null,"2021-03-15",null,null,"A prévoir"]
["Réservation de Véhicule"]
["Véhicule"]
["Accompagnateur"]

{"sheet":"BAL NADEGE","index":4,"n_rows":15,"n_cols":27,"rows_kept":15,"cut":false,"hidden":false,"merged":[]}
[{"$f":"RIGHT(CELL(\"nomfichier\",A1),LEN(CELL(\"nomfichier\",A1))-FIND(\"]\",CELL(\"nomfichier\",A1)))","v":"BAL NADEGE"}]
["Régime alimentaire",null,"poids"]
["Boisson",null,"taille"]
["supplément alimentaire"]
[]
[null,"Anesthésie","bilan de déglutition","bilan sanguin","Chirurgie (ortho ou autres)","cardiologie","dentiste","dépistage colo-rectal","dermatologie","ECG","endocrinologie","gastrologie","Gynécologie","mammographie","MPR","neurologie","ophtalmologie","ORL","Orthoprothésiste","pédicure","pneumologie","Psychiatrie","radiologie, scan etc","urologie","vaccin COVID","vaccin grippe","vaccin autres"]
["commentaire",null,null,null,"Suite à sa fracrure le 18/10/2019 , Dr Daumas , Guingamp, injections Tox Bot le 19/02/2020. Contusion genou G le 09/12/2020, chir ortoh Carhaix le 17/12/2020 ponction du genou",null,"dépistage le 28/02/2020 DR le Cerf . ",null,null,null,null,null,null,"dernière le 14/12/2017 au Ch de Carhaix . Pas de Courrier de l'ADEC",null,"RDV à prévoir en 01/2022 si RAS d'ici là, appeler en 11/2021","Pas de suivi",null,null,null,null,null,null,null,null,null,"dernière info: ATCD Dr Biquillon vaccin le 15/03/2019"]
["Modification au niveau du traitement",null,null,null,null,null,null,null,null,null,null,null,null,null,null,"Traitement Dépakine passé en gouttées le 25/11/2020"]
["Nom du médecin",null,null,null,null,null,"réseau dentaire",null,null,null,null,null,null,null,null,"DR Bourriche",null,"Dr Gauvin "]
["lieu du RDV",null,null,null,null,null,"St Brieuc",null,null,null,null,null,null,null,null,"LANNION",null,"Carhaix"]
["date du dernier RVD",null,null,null,null,null,"2020-08-28",null,null,null,null,null,null,null,null,"2020-01-13",null,"2015-09-03"]
["Prochain RDV",null,null,null,null,null,"a prévoir contrôle en 08/2021",null,null,"a prévoir",null,null,null,"a prévoir",null,"a prévoir 01/2022"]
["Réservation de Véhicule"]
["Véhicule"]
["Accompagnateur"]

{"sheet":"modele (12)","index":5,"n_rows":15,"n_cols":27,"rows_kept":15,"cut":false,"hidden":true,"merged":[]}
[{"$f":"RIGHT(CELL(\"nomfichier\",A1),LEN(CELL(\"nomfichier\",A1))-FIND(\"]\",CELL(\"nomfichier\",A1)))","v":"modele (12)"}]
["Régime alimentaire"]
["Boisson"]
["supplément alimentaire"]
[]
[null,"Anesthésie","bilan de déglutition","bilan sanguin","Chirurgie (ortho ou autres)","cardiologie","dentiste","dépistage colo-rectal","dermatologie","ECG","endocrinologie","gastrologie","Gynécologie","mammographie","MPR","neurologie","ophtalmologie","ORL","orthophoniste","pédicure","pneumologie","Psychiatrie","radiologie, scan etc","urologie","vaccin COVID","vaccin grippe","vaccin autres"]
["commentaire"]
["Modification au niveau du traitement"]
["Nom du médecin"]
["lieu du RDV"]
["date du dernier RVD"]
["Prochain RDV"]
["Réservation de Véhicule"]
["Véhicule"]
["Accompagnateur"]

{"sheet":"BIDEAU BERNARD","index":6,"n_rows":15,"n_cols":27,"rows_kept":15,"cut":false,"hidden":false,"merged":[]}
[{"$f":"RIGHT(CELL(\"nomfichier\",A1),LEN(CELL(\"nomfichier\",A1))-FIND(\"]\",CELL(\"nomfichier\",A1)))","v":"BIDEAU BERNARD"}]
["Régime alimentaire",null,"poids"]
["Boisson",null,"taille"]
["supplément alimentaire"]
[]
[null,"Anesthésie","bilan de déglutition","bilan sanguin","Chirurgie (ortho ou autres)","cardiologie","dentiste","dépistage colo-rectal","dermatologie","ECG","endocrinologie","gastrologie","Gynécologie","mammographie","MPR","neurologie","ophtalmologie","ORL","Orthoprothésiste","pédicure","pneumologie","Psychiatrie","radiologie, scan etc","urologie","vaccin COVID","vaccin grippe","vaccin autres"]
["commentaire",null,null,null,null,null,null,null,null,"Pas de suivi",null,null,null,null,null,null,"Pas de suivi nécessaire",null,null,null,null,null,"radio et consultation"]
["Modification au niveau du traitement"]
["Nom du médecin",null,null,null,null,null,null,null,null,null,null,null,null,null,null,null,null,null,null,null,null,null,"Dr Sakkai"]
["lieu du RDV",null,null,null,null,null,null,null,null,null,null,null,null,null,null,null,"CH Plérin",null,null,null,null,null,"CH Guingamp"]
["date du dernier RVD",null,null,null,null,null,null,null,null,"2020-12-16",null,null,null,null,null,null,"2021-01-26"]
["Prochain RDV",null,null,null,null,null,"a prévoir dès qu'il pourra se mobiliser",null,null,null,null,null,null,null,null,null,null,null,null,null,null,null,"2021-04-26T13:30:00"]
["Réservation de Véhicule",null,null,null,null,null,null,null,null,null,null,null,null,null,null,null,null,null,null,null,null,null,"oui "]
["Véhicule",null,null,null,null,null,null,null,null,null,null,null,null,null,null,null,null,null,null,null,null,null,"Kangoo"]
["Accompagnateur"]

{"sheet":"BOULARD FABRICE","index":7,"n_rows":15,"n_cols":27,"rows_kept":15,"cut":false,"hidden":false,"merged":[]}
[{"$f":"RIGHT(CELL(\"nomfichier\",A1),LEN(CELL(\"nomfichier\",A1))-FIND(\"]\",CELL(\"nomfichier\",A1)))","v":"BOULARD FABRICE"}]
["Régime alimentaire","GPE","poids"]
["Boisson","GPE","taille"]
["supplément alimentaire"]
[]
[null,"Anesthésie","bilan de déglutition","bilan sanguin","Chirurgie (ortho ou autres)","cardiologie","dentiste","dépistage colo-rectal","dermatologie","ECG","endocrinologie","gastrologie","Gynécologie","mammographie","MPR","neurologie","ophtalmologie","ORL","Orthoprothésiste","pédicure","pneumologie","Psychiatrie","radiologie, scan etc","urologie","vaccin COVID","vaccin grippe","vaccin autres"]
["commentaire",null,null,"Surveillance de l'acide valproïque",null,null,"Dépistage bucco dentaire en 01/2020. Détartrage + soins. RDV le 25/09/2020 consultation impossible. RDV du 29/01/21 : détartrage sub complet, pas de lésion inf visible, usure dentaire avancée",null,null,null,null,"Sonde GPE arrachée 2 fois en 1 semaine en 03/2019. Sonde arrachée le 15/09/2019 : intervention le 17/09/2019. Pas de changement à prévoir",null,null,null,"EEG + consult le 14/09/2020",null,null,null,null,null,null,null,null,null,"Pas de vaccin en 2019"]
["Modification au niveau du traitement"]
["Nom du médecin",null,null,null,null,null,"réseau dentaire",null,null,null,null,null,null,null,null,"Dr Massengo"]
["lieu du RDV",null,null,null,null,null,"Saint Brieuc",null,null,null,null,null,null,null,null,"CH Lannion"]
["date du dernier RVD",null,null,"2020-08-20",null,null,"2021-01-29",null,null,"2019-11-01",null,null,null,null,null,"2019-07-01",null,null,null,null,null,null,null,null,null,"2018-11-01","2012-08-28"]
["Prochain RDV",null,null,null,null,null,"a prévoir dans 6 mois  juillet/août 2021)",null,null,null,null,null,null,null,null,null,null,null,null,null,null,null,null,null,null,null,"a prévoir en 2032"]
["Réservation de Véhicule"]
["Véhicule"]
["Accompagnateur"]

{"sheet":"BOURGES PATRICIA","index":8,"n_rows":15,"n_cols":27,"rows_kept":15,"cut":false,"hidden":false,"merged":[]}
[{"$f":"RIGHT(CELL(\"nomfichier\",A1),LEN(CELL(\"nomfichier\",A1))-FIND(\"]\",CELL(\"nomfichier\",A1)))","v":"BOURGES PATRICIA"}]
["Régime alimentaire",null,"poids"]
["Boisson",null,"taille"]
["supplément alimentaire"]
[]
[null,"Anesthésie","bilan de déglutition","bilan sanguin","Chirurgie (ortho ou autres)","cardiologie","dentiste","dépistage colo-rectal","dermatologie","ECG","endocrinologie","gastrologie","Gynécologie","mammographie","MPR","neurologie","ophtalmologie","ORL","Orthoprothésiste","pédicure","pneumologie","Psychiatrie","radiologie, scan etc","urologie","vaccin COVID","vaccin grippe","vaccin autres"]
["commentaire",null,null,null,null,null,null,null,null,null,null,null,null,null,null,null,"En attendant le RDV si besoin de lire l'accompagner pour achat de lunettes en pharmacie ou loupe",null,null,null,null,null,null,null,null,null,"Pas d'info"]
["Modification au niveau du traitement"]
["Nom du médecin",null,null,null,null,null,"Dr Le Cerf ",null,null,null,null,null,"Dr Masreddine"]
["lieu du RDV",null,null,null,null,null,"Callac",null,null,null,null,null,"Carhaix"]
["date du dernier RVD",null,null,null,null,null,"2020-11-23",null,null,"2020-12-01",null,null,null,"2020-07-16"]
["Prochain RDV",null,null,null,null,null,"a prévoir en 11/2021",null,null,null,null,null,"2021-04-27T11:30:00","a prévoir en juin 2022",null,null,"a prévoir en 2024"]
["Réservation de Véhicule"]
["Véhicule"]
["Accompagnateur"]

{"sheet":"BUCHOUX FLORIAN","index":9,"n_rows":15,"n_cols":27,"rows_kept":15,"cut":false,"hidden":false,"merged":[]}
[{"$f":"RIGHT(CELL(\"nomfichier\",A1),LEN(CELL(\"nomfichier\",A1))-FIND(\"]\",CELL(\"nomfichier\",A1)))","v":"BUCHOUX FLORIAN"}]
["Régime alimentaire",null,"poids"]
["Boisson",null,"taille"]
["supplément alimentaire"]
[]
[null,"Anesthésie","bilan de déglutition","bilan sanguin","Chirurgie (ortho ou autres)","cardiologie","dentiste","dépistage colo-rectal","dermatologie","ECG","endocrinologie","gastrologie","Gynécologie","mammographie","MPR","neurologie","ophtalmologie","ORL","Orthoprothésiste","pédicure","pneumologie","Psychiatrie","radiologie, scan etc","urologie","vaccin COVID","vaccin grippe","vaccin autres"]
["commentaire",null,null,null,null,null,"2017 RSD pour détartrage, dernière consultation à Callac 08/2019, RDV à Plérin pour détartrage et extraction sous AG le 03/12/2019",null,null,null,null,null,null,null,null,"Dernier RDV avec DR Bourriche par téléphone (COVID) le 13/05/2020"]
["Modification au niveau du traitement",null,null,null,null,null,null,null,null,null,null,null,null,null,null,"Pas de modification de traitement"]
["Nom du médecin",null,null,null,null,null,null,null,null,null,null,null,null,null,null,"DR Bourriche"]
["lieu du RDV",null,null,null,null,null,null,null,null,null,null,null,null,null,null,"Lannion"]
["date du dernier RVD",null,null,null,null,null,"2019-12-03",null,null,null,null,null,null,null,null,"2020-05-13"]
["Prochain RDV",null,null,null,null,null,null,null,null,null,null,null,null,null,null,"a prévoir en 05 2021"]
["Réservation de Véhicule"]
["Véhicule"]
["Accompagnateur"]

{"sheet":"CHAUVEL MICHEL","index":10,"n_rows":15,"n_cols":27,"rows_kept":15,"cut":false,"hidden":false,"merged":[]}
[{"$f":"RIGHT(CELL(\"nomfichier\",A1),LEN(CELL(\"nomfichier\",A1))-FIND(\"]\",CELL(\"nomfichier\",A1)))","v":"CHAUVEL MICHEL"}]
["Régime alimentaire",null,"poids"]
["Boisson",null,"taille"]
["supplément alimentaire"]
[]
[null,"Anesthésie","bilan de déglutition","bilan sanguin","Chirurgie (ortho ou autres)","cardiologie","dentiste","dépistage colo-rectal","dermatologie","ECG","endocrinologie","gastrologie","Gynécologie","mammographie","MPR","neurologie","ophtalmologie","ORL","Orthoprothésiste","pédicure","pneumologie","Psychiatrie","radiologie, scan etc","urologie","vaccin COVID","vaccin grippe","vaccin autres"]
["commentaire",null,null,null,null,null,"RAS en 05/2019",null,"Demande d'avis ; plaque aisselle droite (31/07/2019)",null,null,"colo/mici",null,null,null,null,"Cataracte en 2013",null,null,null,null,null,"Scan cérébral le 29/03/17 (abs avc// recherche suite FR avec état confusionnel)"]
["Modification au niveau du traitement"]
["Nom du médecin",null,null,null,null,null,"Dr Gardier",null,"Dr Golgicea",null,null,"Dr Louvain",null,null,"Dr Delaruelle","Dr Massengo","Dr Rafkhoui","Dr Lengrand"]
["lieu du RDV",null,null,null,null,null,null,null,"Guingamp",null,null,null,null,null,"CH Guingamp","Ch Lannion"]
["date du dernier RVD",null,null,"2019-01-14",null,null,"2019-05-01",null,"2019-07-31",null,null,"2016-03-25",null,null,null,"2017-06-16","2021-03-11","2016-05-02"]
["Prochain RDV",null,null,null,null,null,null,null,null,null,null,"2020-01-07"]
["Réservation de Véhicule"]
["Véhicule"]
["Accompagnateur"]

{"sheet":"CORBEL JOSIANE","index":11,"n_rows":15,"n_cols":27,"rows_kept":15,"cut":false,"hidden":false,"merged":[]}
[{"$f":"RIGHT(CELL(\"nomfichier\",A1),LEN(CELL(\"nomfichier\",A1))-FIND(\"]\",CELL(\"nomfichier\",A1)))","v":"CORBEL JOSIANE"}]
["Régime alimentaire",null,"poids"]
["Boisson",null,"taille"]
["supplément alimentaire"]
[]
[null,"Anesthésie","bilan de déglutition","bilan sanguin","Chirurgie (ortho ou autres)","cardiologie","dentiste","dépistage colo-rectal","dermatologie","ECG","endocrinologie","gastrologie","Gynécologie","mammographie","MPR","neurologie","ophtalmologie","ORL","Orthoprothésiste","pédicure","pneumologie","Psychiatrie","radiologie, scan etc","urologie","vaccin COVID","vaccin grippe","vaccin autres"]
["commentaire",null,null,"le 30/06/2020 : RAS",null,null,"depistage fait le 28/01/20 (Dr le Cerf) callac",null,null,"Vu par le Dr Corbel 01/2021 : probable syndrôme d'obésité hypoventilation alvéolaire. Pas de RDV à prévoir",null,null,null,"Mammo le 13/01/2016 prévoir écho à la place la prochaine fois",null,"Dr Pouyet (St Brieuc) en 07/2019. augmentation des crises",null,null,null,null,"03/04/2019 DR Badour (Ch Guingamp) radio + efr le 16/09/2019",null,null,null,null,null,"rappel vaccin le 22/10/2016?"]
["Modification au niveau du traitement"]
["Nom du médecin"]
["lieu du RDV"]
["date du dernier RVD",null,null,null,null,null,"2020-01-28",null,null,null,null,null,null,null,null,"2021-02-26"]
["Prochain RDV"]
["Réservation de Véhicule"]
["Véhicule"]
["Accompagnateur"]

{"sheet":"COUGARD HUBERT","index":12,"n_rows":15,"n_cols":27,"rows_kept":15,"cut":false,"hidden":false,"merged":[]}
[{"$f":"RIGHT(CELL(\"nomfichier\",A1),LEN(CELL(\"nomfichier\",A1))-FIND(\"]\",CELL(\"nomfichier\",A1)))","v":"COUGARD HUBERT"}]
["Régime alimentaire",null,"poids"]
["Boisson",null,"taille"]
["supplément alimentaire"]
[]
[null,"Anesthésie","bilan de déglutition","bilan sanguin","Chirurgie (ortho ou autres)","cardiologie","dentiste","dépistage colo-rectal","dermatologie","ECG","endocrinologie","gastrologie","Gynécologie","mammographie","MPR","neurologie","ophtalmologie","ORL","Orthoprothésiste","pédicure","pneumologie","Psychiatrie","radiologie, scan etc","urologie","vaccin COVID","vaccin grippe","vaccin autres"]
["commentaire"]
["Modification au niveau du traitement"]
["Nom du médecin"]
["lieu du RDV"]
["date du dernier RVD",null,null,"2018-11-09"]
["Prochain RDV"]
["Réservation de Véhicule"]
["Véhicule"]
["Accompagnateur"]

{"sheet":"EL BACHIR MARIE JOSE","index":13,"n_rows":15,"n_cols":27,"rows_kept":15,"cut":false,"hidden":false,"merged":[]}
[{"$f":"RIGHT(CELL(\"nomfichier\",A1),LEN(CELL(\"nomfichier\",A1))-FIND(\"]\",CELL(\"nomfichier\",A1)))","v":"EL BACHIR MARIE JOSE"}]
["Régime alimentaire","diabétique mouliné","poids"]
["Boisson","normale","taille"]
["supplément alimentaire"]
[]
[null,"Anesthésie","bilan de déglutition","bilan sanguin","Chirurgie (ortho ou autres)","cardiologie","dentiste","dépistage colo-rectal","dermatologie","ECG","endocrinologie","gastrologie","Gynécologie","mammographie","MPR","neurologie","ophtalmologie","ORL","Orthoprothésiste","pédicure","pneumologie","Psychiatrie","radiologie, scan etc","urologie","vaccin COVID","vaccin grippe","vaccin autres"]
["commentaire",null,null,"Surveillance hémoglobine glyquée : 7,4% en 11/20",null,"Surveillance annuelle . Possible coronaropathie. Réinstauration du kardégic. Echo doppler : le 27/01/2020 RAS","Pas de dent","Négatif","Bursite+plaie au coude  droit (plaie suivie pdt plus d'un an par Dr Montes en 2017-2018). Plaie toujours ouverte, traitée avec pommade calendula+pst+coudière (pour prévenir les chutes). Mise sous homéopathie (heparsulfuris 15CH) en 08/20 et 11/20",null,"Bilan diabète tous les ans, suivi par Dr RAAD (Ch Carhaix). Dernier bilan en août 2019: réadaptation du ttt anditdiabétique oral.RDV le 20/08/20 : pas de changement de ttt","Oesophagite ulcérée mise en évodence en mars 2018 avec contrôle en mai 2018. Traitement d'IPP au long cours. Endoscopie oeso gastroduodénale-biopsie+coloscanner en oct et nov 2020: gastrite chronique légère. ",null,null,null,null,"Suivi diabète, RDV en 12/2020 Dr Thierry (CH Morvan): RAS.  Intervention cataracte Œil droit et gauche en septembre et octobre 2018 (Ch Guingamp, DR Gherman)",null,null,"Contrôle tous les 3 mois"]
["Modification au niveau du traitement"]
["Nom du médecin",null,null,null,null,"Dr Jousse"]
["lieu du RDV",null,null,null,null,"CH Carhaix"]
["date du dernier RVD",null,null,"2020-07-01",null,null,null,"2019-12-01",null,"2019-04-01","2021-02-18"]
["Prochain RDV",null,null,null,null,null,null,null,null,null,null,"a prévoir nov 2023 FOGD",null,null,null,null,"a prévoir en décembre 2021",null,null,null,null,null,null,null,null,null,"a prévoir 09/2023"]
["Réservation de Véhicule"]
["Véhicule"]
["Accompagnateur"]

{"sheet":"ELLIEN MARIANNE","index":14,"n_rows":15,"n_cols":27,"rows_kept":15,"cut":false,"hidden":false,"merged":[]}
[{"$f":"RIGHT(CELL(\"nomfichier\",A1),LEN(CELL(\"nomfichier\",A1))-FIND(\"]\",CELL(\"nomfichier\",A1)))","v":"ELLIEN MARIANNE"}]
["Régime alimentaire","mouliné ","poids"]
["Boisson","RH Gazeuse (St Yorre)","taille"]
["supplément alimentaire"]
[]
[null,"Anesthésie","bilan de déglutition","bilan sanguin","Chirurgie (ortho ou autres)","cardiologie","dentiste","dépistage colo-rectal","dermatologie","ECG","endocrinologie","gastrologie","Gynécologie","mammographie","MPR","neurologie","ophtalmologie","ORL","Orthoprothésiste","pédicure","pneumologie","Psychiatrie","radiologie, scan etc","urologie","vaccin COVID","vaccin grippe","vaccin autres"]
["commentaire",null,null,null,null,null,"Dernier suivi à Callac en oct. RDV à prendre pour contrôle à Callac","Négatif",null,null,null,"Suivi gastro avec des ATCD familiaux? Dernier bilan endoscopique fait en juin 2015. RDV Gastro à prévoir en 2020","Dépistage cancer du sein (ATCD Familiaux). Dernier fait en juillet 2018",null,null,null,null,null,"Chute le 1/09/2019 : fracture du col du fémur gauche: intervention chirurgicale le 03/09 + PTH",null,null,null,null,null,null,null,"Revaxis prochain rappel le 25/11/2025"]
["Modification au niveau du traitement"]
["Nom du médecin"]
["lieu du RDV"]
["date du dernier RVD",null,null,"2020-04-01",null,null,null,"2020-01-01",null,"2020-04-01"]
["Prochain RDV",null,null,null,null,null,"a prévoir",null,null,null,null,null,null,null,null,null,null,null,null,null,null,null,null,null,null,null,"2025-11-25"]
["Réservation de Véhicule"]
["Véhicule"]
["Accompagnateur"]

{"sheet":"EVEILLARD DANIEL","index":15,"n_rows":15,"n_cols":27,"rows_kept":15,"cut":false,"hidden":false,"merged":[]}
[{"$f":"RIGHT(CELL(\"nomfichier\",A1),LEN(CELL(\"nomfichier\",A1))-FIND(\"]\",CELL(\"nomfichier\",A1)))","v":"EVEILLARD DANIEL"}]
["Régime alimentaire",null,"poids"]
["Boisson",null,"taille"]
["supplément alimentaire"]
[]
[null,"Anesthésie","bilan de déglutition","bilan sanguin","Chirurgie (ortho ou autres)","cardiologie","dentiste","dépistage colo-rectal","dermatologie","ECG","endocrinologie","gastrologie","Gynécologie","mammographie","MPR","neurologie","ophtalmologie","ORL","Orthoprothésiste","pédicure","pneumologie","Psychiatrie","radiologie, scan etc","urologie","vaccin COVID","vaccin grippe","vaccin autres"]
["commentaire"]
["Modification au niveau du traitement"]
["Nom du médecin"]
["lieu du RDV"]
["date du dernier RVD"]
["Prochain RDV"]
["Réservation de Véhicule"]
["Véhicule"]
["Accompagnateur"]

{"sheet":"GLEMEE AZELIN","index":16,"n_rows":15,"n_cols":27,"rows_kept":15,"cut":false,"hidden":false,"merged":[]}
[{"$f":"RIGHT(CELL(\"nomfichier\",A1),LEN(CELL(\"nomfichier\",A1))-FIND(\"]\",CELL(\"nomfichier\",A1)))","v":"GLEMEE AZELIN"}]
["Régime alimentaire","normal","poids"]
["Boisson","normale","taille"]
["supplément alimentaire"]
[]
[null,"Anesthésie","bilan de déglutition","bilan sanguin","Chirurgie (ortho ou autres)","cardiologie","dentiste","dépistage colo-rectal","dermatologie","ECG","endocrinologie","gastrologie","Gynécologie","mammographie","MPR","neurologie","ophtalmologie","ORL","Orthoprothésiste","pédicure","pneumologie","Psychiatrie","radiologie, scan etc","urologie","vaccin COVID","vaccin grippe","vaccin autres"]
["commentaire",null,null,null,null,"RDV cardio Dr Corbel en 06/2016 . ECG fait le 29/05/2019 : bradtcardie connue","Suivi à Callac. Juin 2019: extraction d'1 dent. Soins réalisés entre sept et nov 2019. Extraction prévue entre septembre et novembre 2019","Négatif",null,null,null,null,null,null,null,null,"Dernier RDV Dr Uro (Ch de plérin) 04/2018 avec ordonnance de lunettes","Suivi par DR Saramon (Ch Carhaix) . Drnier RDV rn 10/2018.        Le 05/06/2019 RDV Dr Maestra : ablation d'un bouchon de cérumen, cavité d'évidement stable. Prochain RDV 05/2020",null,null,null,null,null," Echo-reno-vesico-prostatique en 2016 avec Dr Braguet (CH Plérin). Le 17/09/2019 : petit adénome prostatique qui n'influence pas les fuites urinaires",null,null,"Révaxis en 01/2011. Prochain rappel le 21/01/2021 (à vérifier)"]
["Modification au niveau du traitement"]
["Nom du médecin"]
["lieu du RDV"]
["date du dernier RVD",null,null,"2019-05-01",null,null,null,"2020-01-01",null,"2019-05-01"]
["Prochain RDV",null,null,null,null,null,null,null,null,null,null,null,null,null,null,null,"a prévoir en 2023"]
["Réservation de Véhicule"]
["Véhicule"]
["Accompagnateur"]

{"sheet":"GODE PIERRE YVES","index":17,"n_rows":15,"n_cols":27,"rows_kept":15,"cut":false,"hidden":false,"merged":[]}
[{"$f":"RIGHT(CELL(\"nomfichier\",A1),LEN(CELL(\"nomfichier\",A1))-FIND(\"]\",CELL(\"nomfichier\",A1)))","v":"GODE PIERRE YVES"}]
["Régime alimentaire",null,"poids"]
["Boisson",null,"taille"]
["supplément alimentaire"]
[]
[null,"Anesthésie","bilan de déglutition","bilan sanguin","Chirurgie (ortho ou autres)","cardiologie","dentiste","dépistage colo-rectal","dermatologie","ECG","endocrinologie","gastrologie","Gynécologie","mammographie","MPR","neurologie","ophtalmologie","ORL","Orthoprothésiste","pédicure","pneumologie","Psychiatrie","radiologie, scan etc","urologie","vaccin COVID","vaccin grippe","vaccin autres"]
["commentaire",null,null,null,null,null,"soins ssAG via réseau dentaire le 08/11/2019",null,null,null,null,"28/04/2011 DR Vicchi (Lannion) : pas de nouveau RDV demandé",null,null,null,"Dernière consultation le 23/09/2019 (Dr Bourriche): EEG fait pas de changement","Pas de suivi (examens difficiles à réaliser sans sa coopération"]
["Modification au niveau du traitement"]
["Nom du médecin"]
["lieu du RDV"]
["date du dernier RVD",null,null,"2019-04-19"]
["Prochain RDV",null,null,null,null,null,"2021-04-23T09:00:00",null,null,null,null,null,null,null,null,"A prévoir en 2021"]
["Réservation de Véhicule"]
["Véhicule"]
["Accompagnateur"]

{"sheet":"GUEGUEN ALANIG","index":18,"n_rows":15,"n_cols":27,"rows_kept":15,"cut":false,"hidden":false,"merged":[]}
[{"$f":"RIGHT(CELL(\"nomfichier\",A1),LEN(CELL(\"nomfichier\",A1))-FIND(\"]\",CELL(\"nomfichier\",A1)))","v":"GUEGUEN ALANIG"}]
["Régime alimentaire",null,"poids"]
["Boisson",null,"taille"]
["supplément alimentaire"]
[]
[null,"Anesthésie","bilan de déglutition","bilan sanguin","Chirurgie (ortho ou autres)","cardiologie","dentiste","dépistage colo-rectal","dermatologie","ECG","endocrinologie","gastrologie","Gynécologie","mammographie","MPR","neurologie","ophtalmologie","ORL","Orthoprothésiste","pédicure","pneumologie","Psychiatrie","radiologie, scan etc","urologie","vaccin COVID","vaccin grippe","vaccin autres"]
["commentaire",null,null,null,null,null,"2017 DR Kerbellec Auray",null,null,null,null,"2014 Dr Le Bihan Ch Guingamp",null,null,null,"2008 Dr Guiziou CH Lannion",null,"02/2019  DR Gauvin CH Brest","Médecin rééducateur : 08/2018 DR Delaruelle CH Guingamp"]
["Modification au niveau du traitement"]
["Nom du médecin"]
["lieu du RDV"]
["date du dernier RVD"]
["Prochain RDV"]
["Réservation de Véhicule"]
["Véhicule"]
["Accompagnateur"]

{"sheet":"GUEGUEN STEVEN","index":19,"n_rows":15,"n_cols":27,"rows_kept":15,"cut":false,"hidden":false,"merged":[]}
[{"$f":"RIGHT(CELL(\"nomfichier\",A1),LEN(CELL(\"nomfichier\",A1))-FIND(\"]\",CELL(\"nomfichier\",A1)))","v":"GUEGUEN STEVEN"}]
["Régime alimentaire","hp mixé","poids"]
["Boisson","Gazeuse/épaissie +1 verre de jus de pruneau le matin","taille"]
["supplément alimentaire","oui ","céréales HP le matin"]
[]
[null,"Anesthésie","bilan de déglutition","bilan sanguin","Chirurgie (ortho ou autres)","cardiologie","dentiste","dépistage colo-rectal","dermatologie","ECG","endocrinologie","gastrologie","Gynécologie","mammographie","MPR","neurologie","ophtalmologie","ORL","Orthoprothésiste","pédicure","pneumologie","Psychiatrie","radiologie, scan etc","urologie","vaccin COVID","vaccin grippe","vaccin autres"]
["commentaire",null,null,"Carbalazépine : dernier dosage le 28/02/2020",null,null,"suivi par le réseau dentaire de St Brieuc",null,null,"difficile à réaliser",null,"Lors de son hospi du 20/03 au 04/04/2019 // fracture du col huméral droit, avis demandé au gastro//diarrhées chroniques: pas de nécessité de réaliser d'endoscopie",null,null,null,"RDV avec le Dr Bourriche (ch lannion ) le 06/02/2019. Puis le 24/09/2020",null,null,null,null,null,null,null,null,null,null,"repevax : 08/2018"]
["Modification au niveau du traitement"]
["Nom du médecin"]
["lieu du RDV"]
["date du dernier RVD",null,"2020-02-01",null,null,null,null,null,null,"2019-01-01",null,null,null,null,null,"2020-09-24"]
["Prochain RDV",null,null,null,null,null,null,null,null,null,null,null,null,null,null,null,null,null,null,null,null,null,null,null,null,null,"a prévoir en 2038"]
["Réservation de Véhicule"]
["Véhicule"]
["Accompagnateur"]

{"sheet":"GUEZO CLAUDE","index":20,"n_rows":15,"n_cols":27,"rows_kept":15,"cut":false,"hidden":false,"merged":[]}
[{"$f":"RIGHT(CELL(\"nomfichier\",A1),LEN(CELL(\"nomfichier\",A1))-FIND(\"]\",CELL(\"nomfichier\",A1)))","v":"GUEZO CLAUDE"}]
["Régime alimentaire",null,"poids"]
["Boisson",null,"taille"]
["supplément alimentaire"]
[]
[null,"Anesthésie","bilan de déglutition","bilan sanguin","Chirurgie (ortho ou autres)","cardiologie","dentiste","dépistage colo-rectal","dermatologie","ECG","endocrinologie","gastrologie","Gynécologie","mammographie","MPR","neurologie","ophtalmologie","ORL","Orthoprothésiste","pédicure","pneumologie","Psychiatrie","radiologie, scan etc","urologie","vaccin COVID","vaccin grippe","vaccin autres"]
["commentaire",null,null,"RAS",null,null,"Suivi à Callac 12/18 et 01/19",null,null,null,null,"RAS",null,null,null,null,"Cécité","consultation bouchons d'oreilles bilatéraux",null,null,"RAS","stable",null,"TTT per os (Xatral)",null,null,"Revaxis 26/03/2014"]
["Modification au niveau du traitement"]
["Nom du médecin"]
["lieu du RDV"]
["date du dernier RVD",null,null,"2020-08-13",null,null,null,null,null,null,null,null,null,null,null,"2020-10-28",null,"2020-02-05",null,null,null,null,null,null,null,null,"2014-03-26"]
["Prochain RDV",null,null,null,null,null,null,null,null,"a prévoir",null,null,null,null,null,null,null,null,null,null,null,null,null,null,null,null,"a prévoir en 2024"]
["Réservation de Véhicule"]
["Véhicule"]
["Accompagnateur"]

{"sheet":"GUILLARD NICOLE","index":21,"n_rows":15,"n_cols":27,"rows_kept":15,"cut":false,"hidden":false,"merged":[]}
[{"$f":"RIGHT(CELL(\"nomfichier\",A1),LEN(CELL(\"nomfichier\",A1))-FIND(\"]\",CELL(\"nomfichier\",A1)))","v":"GUILLARD NICOLE"}]
["Régime alimentaire",null,"poids"]
["Boisson",null,"taille"]
["supplément alimentaire"]
[]
[null,"Anesthésie","bilan de déglutition","bilan sanguin","Chirurgie (ortho ou autres)","cardiologie","dentiste","dépistage colo-rectal","dermatologie","ECG","endocrinologie","gastrologie","Gynécologie","mammographie","MPR","neurologie","ophtalmologie","ORL","Orthoprothésiste","pédicure","pneumologie","Psychiatrie","radiologie, scan etc","urologie","vaccin COVID","vaccin grippe","vaccin autres"]
["commentaire"]
["Modification au niveau du traitement"]
["Nom du médecin"]
["lieu du RDV"]
["date du dernier RVD"]
["Prochain RDV"]
["Réservation de Véhicule"]
["Véhicule"]
["Accompagnateur"]

{"sheet":"GUILON LAURENT","index":22,"n_rows":15,"n_cols":27,"rows_kept":15,"cut":false,"hidden":false,"merged":[]}
[{"$f":"RIGHT(CELL(\"nomfichier\",A1),LEN(CELL(\"nomfichier\",A1))-FIND(\"]\",CELL(\"nomfichier\",A1)))","v":"GUILON LAURENT"}]
["Régime alimentaire",null,"poids",null,"Suivi Hépatique : 24/10/2018 Dr Marque (Carhaix) pas de nouveau RDV (Guérison)"]
["Boisson",null,"taille"]
["supplément alimentaire"]
[]
[null,"Anesthésie","bilan de déglutition","bilan sanguin","Chirurgie (ortho ou autres)","cardiologie","dentiste","dépistage colo-rectal","dermatologie","ECG","endocrinologie","gastrologie","Gynécologie","mammographie","MPR","neurologie","ophtalmologie","ORL","Orthoprothésiste","pédicure","pneumologie","Psychiatrie","radiologie, scan etc","urologie","vaccin COVID","vaccin grippe","vaccin autres"]
["commentaire",null,null,"RAS",null,null,null,null,null,"RAS",null,null,null,null,null,null,"09/11/2020 (DR Uro , Plérin): renouvellement gouttes Xalatan, prescription lunettes et montures mais ont été changées le 08/11/2018",null,null,null,null,"Suivi jusqu'en 2021 par DR Ruppert"]
["Modification au niveau du traitement"]
["Nom du médecin"]
["lieu du RDV"]
["date du dernier RVD",null,null,"2020-11-30",null,null,"2020-05-11",null,null,"2020-12-02",null,null,null,null,null,null,"2020-11-09"]
["Prochain RDV",null,null,null,null,null,"a prévoir 05/2021",null,null,null,null,null,null,null,null,null,"a prévoir en 11/2021"]
["Réservation de Véhicule"]
["Véhicule"]
["Accompagnateur"]

{"sheet":"HAMON KARINE","index":23,"n_rows":15,"n_cols":27,"rows_kept":15,"cut":false,"hidden":false,"merged":[]}
[{"$f":"RIGHT(CELL(\"nomfichier\",A1),LEN(CELL(\"nomfichier\",A1))-FIND(\"]\",CELL(\"nomfichier\",A1)))","v":"HAMON KARINE"}]
["Régime alimentaire",null,"poids"]
["Boisson",null,"taille"]
["supplément alimentaire"]
[]
[null,"Anesthésie","bilan de déglutition","bilan sanguin","Chirurgie (ortho ou autres)","cardiologie","dentiste","dépistage colo-rectal","dermatologie","ECG","endocrinologie","gastrologie","Gynécologie","mammographie","MPR","neurologie","ophtalmologie","ORL","Orthoprothésiste","pédicure","pneumologie","Psychiatrie","radiologie, scan etc","urologie","vaccin COVID","vaccin grippe","vaccin autres"]
["commentaire"]
["Modification au niveau du traitement"]
["Nom du médecin",null,null,null,null,"Dr Baulleret",null,null,null,null,null,null,null,null,null,"DR Thomas",null,null,null,null,null,"Dr Ruppert"]
["lieu du RDV",null,null,null,null,null,null,null,null,null,null,null,null,null,null,"CH Morlaix"]
["date du dernier RVD",null,null,null,null,"2018-02-01",null,null,null,null,null,null,null,null,null,"2021-03-19",null,null,null,null,null,"2018-03-01"]
["Prochain RDV"]
["Réservation de Véhicule"]
["Véhicule"]
["Accompagnateur"]

{"sheet":"HARNOIS ARLETTE","index":24,"n_rows":15,"n_cols":27,"rows_kept":15,"cut":false,"hidden":false,"merged":[]}
[{"$f":"RIGHT(CELL(\"nomfichier\",A1),LEN(CELL(\"nomfichier\",A1))-FIND(\"]\",CELL(\"nomfichier\",A1)))","v":"HARNOIS ARLETTE"}]
["Régime alimentaire",null,"poids"]
["Boisson",null,"taille"]
["supplément alimentaire"]
[]
[null,"Anesthésie","bilan de déglutition","bilan sanguin","Chirurgie (ortho ou autres)","cardiologie","dentiste","dépistage colo-rectal","dermatologie","ECG","endocrinologie","gastrologie","Gynécologie","mammographie","MPR","neurologie","ophtalmologie","ORL","Orthoprothésiste","pédicure","pneumologie","Psychiatrie","radiologie, scan etc","urologie","vaccin COVID","vaccin grippe","vaccin autres"]
["commentaire",null,null,null,null,null,null,null,null,null,null,null,"Refus de sapart + pas dindication pour un suivi","aucune info",null,null,"RDV le 16/07/19 Dr Stromboni (Plérin), lunettes progressives 09/2019"]
["Modification au niveau du traitement"]
["Nom du médecin"]
["lieu du RDV"]
["date du dernier RVD",null,null,null,null,null,"2020-11-23",null,null,"2020-12-01"]
["Prochain RDV",null,null,null,null,null,"a prévoir 11/2021",null,null,null,null,null,null,null,null,null,"a prévoir 07/2021"]
["Réservation de Véhicule"]
["Véhicule"]
["Accompagnateur"]

{"sheet":"HARZELLEC ROBERT","index":25,"n_rows":15,"n_cols":27,"rows_kept":15,"cut":false,"hidden":false,"merged":[]}
[{"$f":"RIGHT(CELL(\"nomfichier\",A1),LEN(CELL(\"nomfichier\",A1))-FIND(\"]\",CELL(\"nomfichier\",A1)))","v":"HARZELLEC ROBERT"}]
["Régime alimentaire","mouliné avec fibre","poids"]
["Boisson","normale","taille"]
["supplément alimentaire"]
[]
[null,"Anesthésie","bilan de déglutition","bilan sanguin","Chirurgie (ortho ou autres)","cardiologie","dentiste","dépistage colo-rectal","dermatologie","ECG","endocrinologie","gastrologie","Gynécologie","mammographie","MPR","neurologie","ophtalmologie","ORL","Orthoprothésiste","pédicure","pneumologie","Psychiatrie","radiologie, scan etc","urologie","vaccin COVID","vaccin grippe","vaccin autres"]
["commentaire",null,null,null,null,null,null,"Négatif",null,null,null,null,null,null,null,"Chir/valve : nov 2018 Dr Person (guingamp)","cataracte bilatérale Dr Uro à Plérin en 11/2018",null,null,null,null,null,null,null,null,null,"Revaxis"]
["Modification au niveau du traitement"]
["Nom du médecin",null,null,null,null,null,null,null,null,null,null,null,null,null,null,"Dr Lubiato"]
["lieu du RDV",null,null,null,null,null,null,null,null,null,null,null,null,null,null,"Guingamp"]
["date du dernier RVD",null,null,"2019-09-01",null,null,null,"2019-12-01",null,"2019-08-01",null,null,null,null,null,"2020-07-28",null,null,null,null,null,null,null,null,null,null,"2015-12-04"]
["Prochain RDV",null,null,null,null,null,"a prévoir"]
["Réservation de Véhicule"]
["Véhicule"]
["Accompagnateur"]

{"sheet":"JOSSELIN CATHERINE","index":26,"n_rows":15,"n_cols":27,"rows_kept":15,"cut":false,"hidden":false,"merged":[]}
[{"$f":"RIGHT(CELL(\"nomfichier\",A1),LEN(CELL(\"nomfichier\",A1))-FIND(\"]\",CELL(\"nomfichier\",A1)))","v":"JOSSELIN CATHERINE"}]
["Régime alimentaire",null,"poids"]
["Boisson",null,"taille"]
["supplément alimentaire"]
[]
[null,"Anesthésie","bilan de déglutition","bilan sanguin","Chirurgie (ortho ou autres)","cardiologie","dentiste","dépistage colo-rectal","dermatologie","ECG","endocrinologie","gastrologie","Gynécologie","mammographie","MPR","neurologie","ophtalmologie","ORL","Orthoprothésiste","pédicure","pneumologie","Psychiatrie","radiologie, scan etc","urologie","vaccin COVID","vaccin grippe","vaccin autres"]
["commentaire",null,null,null,null,null,null,null,null,null,null,"Hospitalisation 01/2019",null,null,null,"Scnnaer Cérébral",null,null,null,null,null,null,"scanner cérébrel"]
["Modification au niveau du traitement"]
["Nom du médecin",null,null,null,null,"Dr Corbel","Dr Le Cerf ",null,null,null,null,null,null,null,null,null,null,null,null,null,null,"Dr Bernard"]
["lieu du RDV",null,null,null,null,null,"Callac",null,null,null,null,null,null,null,null,"CH Lannion"]
["date du dernier RVD",null,null,null,null,"2019-01-01",null,null,null,null,null,null,null,null,null,"2018-08-01",null,null,null,null,null,null,"2018-08-01"]
["Prochain RDV",null,null,null,null,null,null,null,null,null,null,null,null,"a prévoir en juin 2022"]
["Réservation de Véhicule"]
["Véhicule"]
["Accompagnateur"]

{"sheet":"KADI SAID","index":27,"n_rows":15,"n_cols":27,"rows_kept":15,"cut":false,"hidden":false,"merged":[]}
[{"$f":"RIGHT(CELL(\"nomfichier\",A1),LEN(CELL(\"nomfichier\",A1))-FIND(\"]\",CELL(\"nomfichier\",A1)))","v":"KADI SAID"}]
["Régime alimentaire",null,"poids"]
["Boisson",null,"taille"]
["supplément alimentaire"]
[]
[null,"Anesthésie","bilan de déglutition","bilan sanguin","Chirurgie (ortho ou autres)","cardiologie","dentiste","dépistage colo-rectal","dermatologie","ECG","endocrinologie","gastrologie","Gynécologie","mammographie","MPR","neurologie","ophtalmologie","ORL","Orthoprothésiste","pédicure","pneumologie","Psychiatrie","radiologie, scan etc","urologie","vaccin COVID","vaccin grippe","vaccin autres"]
["commentaire"]
["Modification au niveau du traitement"]
["Nom du médecin"]
["lieu du RDV"]
["date du dernier RVD"]
["Prochain RDV"]
["Réservation de Véhicule"]
["Véhicule"]
["Accompagnateur"]

{"sheet":"régime alimentaire","index":28,"n_rows":11,"n_cols":4,"rows_kept":11,"cut":false,"hidden":false,"merged":[]}
["régime alimentaire",null,null,"Céréales HP le matin"]
["normal"]
["mouliné "]
["mouliné avec fibre"]
["diabétique mouliné"]
["hp mixé"]
["mixé "]
["fibre"]
["hyperprotéiné"]
["hypo"]
["GPE"]

{"sheet":"accompagnateur","index":29,"n_rows":74,"n_cols":3,"rows_kept":74,"cut":false,"hidden":false,"merged":[]}
["Liste du personnel"]
["ANDRE GWENDOLINE",null,"ASSISTANTE SOCIALE"]
["BENHAMOU MAGALY",null,"AES"]
["BERNARD ALYSIA",null,"AIDE SOIGNANTE"]
["BLAISE NATHALIE",null,"AES"]
["BROCHEN MARIE",null,"AES"]
["BROUDIN LAETITIA",null,"AIDE SOIGNANTE"]
["CALVEZ ANNE MARIE",null,"AIDE SOIGNANTE"]
["CANO AURELIE",null,"AIDE SOIGNANTE"]
["COCHENNEC ANAIS",null,"AES"]
["COLLOBERT TYPHAINE",null,"AES"]
["COUTELLER ANNIE",null,"ME"]
["DENIZON CAROLINE",null,"PSYCHOMOT"]
["DIARRA VIRGINIA",null,"IDE"]
["DURAND POULIGO  LYDIE",null,"IDE"]
["EBREL  JULIE",null,"EDUC"]
["EVEN PATRICIA",null,"AES"]
["FEURGARD NICOLAS",null,"AIDE SOIGNANTE"]
["GALOPIN MAHEVA",null,"IDE"]
["GOIC CLARA",null,"EDUC"]
["GUEGAN FRANCOISE",null,"AES"]
["GUEGANOU LAETITIA",null,"ASL"]
["GUILLERM  THIERRY",null,"AES"]
["GUILLOSOU JULIE",null,"IDE"]
["HAMON IONA",null,"AIDE SOIGNANTE"]
["HOURY BENEDICTE",null,"ME"]
["JEGOU NATHALIE",null,"AIDE SOIGNANTE"]
["JOUAN CECILE",null,"AES"]
["KERDAVID  SARA",null,"AES"]
["L'AFFETER  VALERIE",null,"AIDE SOIGNANTE"]
["LAMBERT SEBASTIEN",null,"AMP"]
["LAMIDON GILLES",null,"ANIMATRICE"]
["LE CALVEZ   CHANTAL",null,"AIDE SOIGNANTE"]
["LE CAM TYPHEN",null,"OSL"]
["LE COENT MARINA",null,"SECRETAIRE"]
["LE COZ ELODIE",null,"AES"]
["LE COZ OLIVIER",null,"EDUC SPORTIVE"]
["LE FLOHIC MARTINE",null,"SECRETAIRE"]
["LE FOULGOCQ  EDITH",null,"SECRETAIRE"]
["LE GAL CELINE",null,"AES"]
["LE GALL CLAUDIE",null,"AIDE SOIGNANTE"]
["LE GALL MAELANN",null,"AES"]
["LE GRAET  PASCAL",null,"AIDE SOIGNANTE"]
["LE GUERN  MORGANE",null,"ASL"]
["LE GUYADER MORGANE",null,"AES"]
["LE MERRER ELODIE",null,"AVS"]
["LE NEINDRE  VIRGINIE",null,"ERGOTHERAPEUTE"]
["LE TANNO  CWENAELLE",null,"ASL"]
["LE TANNO  VALERIE",null,"IDE"]
["LEMOSQUET GUILLAUME",null,"ASL"]
["LEON JOELLE"]
["LIENNEL ANDRE  ISABELLE",null,"AES"]
["LORINQUER YAEL",null,"ME"]
["LOZACH SYLVIE",null,"AVS"]
["MALARGE STEREN",null,"IDE"]
["MARTAIL  STEPHANIE",null,"AES"]
["MEVEL  MARIE LAURE",null,"AIDE SOIGNANTE"]
["MICHEL  AUDREY",null,"ASL"]
["OLERON  CHRISTELLE",null,"PSYCHOMOT"]
["PENSEC  AUDREY",null,"EDUCATRICE"]
["PHILIPPE  SOPHIE",null,"AIDE SOIGNANTE"]
["PLANTE ROLAND",null,"ASL"]
["QUEMENEUR MAELLE",null,"ME"]
["RAZER FABIENNE",null,"RESPONSABLE ADJOINTE"]
["ROIGNANT ISABELLE",null,"AES"]
["ROUJON lise",null,"PSYCHOLOGUE"]
["TALLEC KARINE",null,"IDE"]
["TALMON LAETITIA",null,"AIDE SOIGNANTE"]
["TANGUY  ISABELLE",null,"ASL"]
["THOMAS AUDREY",null,"AES"]
["THORAVAL  DOROTHEE",null,"AS"]
["TOULGOAT  CINDY",null,"ASL"]
["TREMEL  CAROLE",null,"AS"]
["YRIOUDO ELODIE",null,"AS"]

{"sheet":"boisson","index":30,"n_rows":5,"n_cols":1,"rows_kept":5,"cut":false,"hidden":false,"merged":[]}
["normale"]
["RH Gazeuse (St Yorre)"]
["Gazeuse/épaissie +1 verre de jus de pruneau le matin"]
["GPE"]
["épaississant"]

{"sheet":"médecin","index":31,"n_rows":59,"n_cols":2,"rows_kept":59,"cut":false,"hidden":false,"merged":[]}
["Nom"]
["Apolinaire","Callac"]
["Dr Allaire","St Brieuc"]
["Dr Baulleret"]
["Dr Bernard","Bégard"]
["DR Bourriche","Lannion"]
["Dr Braguet","Plérin"]
["Dr Charasse","Ch St Brieuc"]
["Dr Corbel"]
["Dr Couvreur","CH Saint Brieuc"]
["Dr Daumas","Guingamp"]
["Dr Delaruelle","Ch Guingamp"]
["Dr Denys","Quintin"]
["Dr Diallo","Ch St Brieuc"]
["Dr Dimbezel","CH Carhaix"]
["Dr Estable","CH Guingamp"]
["Dr Gardier","Carhaix"]
["Dr Gauvin ","Brest"]
["Dr Golgicea","Guingamp"]
["Dr Guessoum ","Guingamp"]
["Dr Guichaoua","Ch Guingamp"]
["Dr Guiziou","Lannion"]
["Dr Jousse","Ch Carhaix"]
["Dr Kerbellec","Auray"]
["Dr Le Bihan","CH Guingamp"]
["Dr Le Cerf ","Callac"]
["Dr le Marhadour","CH Carhaix"]
["Dr Le Mestric","Plémet"]
["Dr Le Toux","Plérin"]
["Dr Lecuyer"]
["Dr Lengrand","CH Brest"]
["Dr Léveque"]
["Dr Louvain"]
["Dr Lubiato"]
["Dr Maestra","CH Carhaix"]
["Dr Marque","Carhaix"]
["Dr Massengo","Lannion"]
["Dr Méheut","Callac"]
["Dr Masreddine","Carhaix"]
["Dr Milin","Guingamp"]
["Dr Mounier","Plérin"]
["Dr Pérennes","Carhaix"]
["Dr Person","Guingamp"]
["Dr Pincemin","St Brieuc"]
["Dr Pouyet","St Brieuc"]
["Dr Raad"]
["Dr Rafkhoui","Loudéac"]
["Dr Rémi di Francia","Brest"]
["Dr Ruppert"]
["Dr Sakkai"]
["Dr Saramon","CH Carhaix"]
["Dr Solange Collet-Bitho","CH Lannion"]
["Dr Tasseng ","CH St brieuc"]
["Dr Tayeb","CH Morlaix"]
["Dr  Thiébot","CH Vannes"]
["DR Thomas","CH Morlaix"]
["Dr Uro","Plérin"]
["Dr Vicchi","Lannion"]
["réseau dentaire","St Brieuc"]

{"sheet":"Réponse","index":32,"n_rows":2,"n_cols":1,"rows_kept":2,"cut":false,"hidden":false,"merged":[]}
["oui "]
["non"]

{"sheet":"véhicules","index":33,"n_rows":6,"n_cols":1,"rows_kept":6,"cut":false,"hidden":false,"merged":[]}
["véhicule"]
["Kangoo"]
["Bus Blanc"]
["Bus gris"]
["Bus Rouge"]
["Ambulance"]

{"sheet":"modele (13)","index":34,"n_rows":26,"n_cols":7,"rows_kept":26,"cut":false,"hidden":true,"merged":[]}
["Nom prénom du résident"]
["Régime alimentaire"]
["Boisson"]
["supplément alimentaire"]
[null,"date du dernier RVD","Nom du médecin","lieu du RDV","commentaire","Modification au niveau du traitement","Prochain RDV"]
["bilan de déglutition"]
["bilan sanguin"]
["cardiologie"]
["dentiste"]
["dépistage colo-rectal"]
["ECG"]
["gastrologie"]
["Gynécologie"]
["mammographie"]
["MPR"]
["neurologie"]
["ophtalmologie"]
["ORL"]
["orthophoniste"]
["pédicure"]
["pneumologie"]
["psychiatrie"]
["urologie"]
["vaccin COVID"]
["vaccin grippe"]
["vaccin autres"]

{"sheet":"Feuil1","index":35,"n_rows":0,"n_cols":0,"rows_kept":0,"cut":false,"hidden":false,"merged":[]}